account_party,address,code,date,document_number,expense_code_name,expense_code_name_short,id,party_cell,party_cell_code,party_cell_geoobject,purpose,source_bank_account_number,source_bank_account_type,sum,target_legal_personality,target_legal_personality_code,target_type
ВОЛЯ,"м. Київ, вул. Грушевського, буд. 1Д",70,2016-12-31,б/н,Банківські послуги,Інші витрати,362863,Центральний офіс,37413211,Україна,Комісія за РКО,26003052628485,current,27.83,"ПАТ КБ ""Приватбанк""",14360570,юридична особа
ВОЛЯ,"м. Київ, вул. Грушевського, буд. 1Д",70,2016-12-29,б/н,Банківські послуги,Інші витрати,362862,Центральний офіс,37413211,Україна,Комісія за РКО,26003052628485,current,15.00,"ПАТ КБ ""Приватбанк""",14360570,юридична особа
ВОЛЯ,"м. Київ, просп. Червонозоряний, буд. 51",76,2016-12-29,233,Послуги зв’язку,Послуги зв’язку,362861,Центральний офіс,37413211,Україна,Послуги зв»язку,26003052628485,current,456.00,"ПрАТ ""Київстар""",21673832,юридична особа
ВОЛЯ,"м. Одеса, вул. Мала Арнаутська, буд. 66",76,2016-12-29,232,Послуги зв’язку,Послуги зв’язку,362860,Центральний офіс,37413211,Україна,Послуги звяязку,26003052628485,current,250.00,"ТОВ ""Інтернаціональні телекомунікації""",30109015,юридична особа
ВОЛЯ,"м. Київ, вул. Грушевського, буд. 1Д",84,2016-12-29,231,"Заробітна плата, премії","Заробітна плата, лікарняні, вагітності, відрядження, компенсації",362859,Центральний офіс,37413211,Україна,Виплата ЗП 12/2016 на карти,26003052628485,current,11131.54,"ПАТ КБ ""Приватбанк""",14360570,юридична особа
ВОЛЯ,"м. Київ, вул. Жилянська, буд. 23",62,2016-12-29,228,Сплата ЄСВ,Податкові платежі,362858,Центральний офіс,37413211,Україна,ЕСВ ЗП 12/2016,26003052628485,current,3042.16,ДПІ у Голосіївському районі м. Києва,39468461,юридична особа
ВОЛЯ,"м. Київ, вул. Володимирська, буд. 69А",61,2016-12-29,230,Військовий збір,Податкові платежі,362857,Центральний офіс,37413211,Україна,Військ.збір ЗП 12/2016,26003052628485,current,207.42,УДКСУ у Голосіївському районі м. Києва,38039757,юридична особа
ВОЛЯ,"м. Київ, вул. Володимирська, буд. 69А",63,2016-12-29,229,Податок на доходи,Податкові платежі,362856,Центральний офіс,37413211,Україна,ПДФОЗП 12/2016,26003052628485,current,2489.04,УДКСУ у Голосіївському районі м. Києва,38039757,юридична особа
ВОЛЯ,"м. Київ, вул. Грушевського, буд. 1Д",70,2016-12-27,б/н,Банківські послуги,Інші витрати,362855,Центральний офіс,37413211,Україна,Комісія за РКО,26003052628485,current,3.00,"ПАТ КБ ""Приватбанк""",14360570,юридична особа
ВОЛЯ,"м. Київ, бульв. Лесі Українки, буд. 9",79,2016-12-27,227,"Оренда будинків і приміщень та експлуатаційні витрати (прибирання, страхування орендованих будинків, охорона, сигналізація, ремонт, вивіз сміття, тощо)",Оренда нерухомості,362854,Центральний офіс,37413211,Україна,Орендна плата офісу,26003052628485,current,16000.00,"СК ""Універсальна""",20113829,юридична особа
ВОЛЯ,"м. Київ, вул. Грушевського, буд. 1Д",70,2016-12-26,б/н,Банківські послуги,Інші витрати,362853,Центральний офіс,37413211,Україна,Комісія за РКО,26003052628485,current,6.00,"ПАТ КБ ""Приватбанк""",14360570,юридична особа
ВОЛЯ,"м. Київ, вул. Межигірська, буд. 5, кв. 18",72,2016-12-26,226,"Придбання, ремонт офісної техніки та програмного забезпечення (Бухгалтерські програми, Ліга.закон, домени)",Придбання офісної техніки та програмного забезпечення,362852,Центральний офіс,37413211,Україна,Інформ-консульт послуги з програми,26003052628485,current,3115.00,"ТОВ ""Ц.І.Т.""",37037811,юридична особа
ВОЛЯ,"м. Київ, вул. Ілллінська, буд. 9",68,2016-12-26,225,Соцдослідження,"Гонорари, в тому числі за надані консультаційні послуги",362851,Центральний офіс,37413211,Україна,Соціологічне дослідження,26003052628485,current,17010.54,"ТОВ ""Київський міжнародний інститут соціології""",13684906,юридична особа
ВОЛЯ,"м. Київ, вул. Хрещатик, буд. 18",52,2016-12-16,224,Інша реклама (без класифікації),Реклама (без класифікації),362850,Центральний офіс,37413211,Україна,Послуги з інформатю,26003052628485,current,500.00,"ТОВ ""Інформаційне агентство ""УНН""",37535221,юридична особа
ВОЛЯ,"м. Київ, вул. Грушевського, буд. 1Д",70,2016-12-16,"1,47Е+10",Банківські послуги,Інші витрати,362849,Центральний офіс,37413211,Україна,Комісія за РКО,26003052628485,current,23.14,"ПАТ КБ ""Приватбанк""",14360570,юридична особа
ВОЛЯ,"м. Київ, вул. Лейпцизька, буд. 15",76,2016-12-16,223,Послуги зв’язку,Послуги зв’язку,362848,Центральний офіс,37413211,Україна,Послуги зв»язку,26003052628485,current,977.97,"ПрАТ ""ВФ Україна""",14333937,юридична особа
ВОЛЯ,"м. Київ, вул. Грушевського, буд. 1Д",70,2016-12-16,б/н,Банківські послуги,Інші витрати,362847,Центральний офіс,37413211,Україна,Комісія за РКО,26003052628485,current,6.00,"ПАТ КБ ""Приватбанк""",14360570,юридична особа
ВОЛЯ,"Київська обл., м. Бориспіль, вул. Київский шлях, буд. 98, кв. 16",79,2016-12-16,224,"Оренда будинків і приміщень та експлуатаційні витрати (прибирання, страхування орендованих будинків, охорона, сигналізація, ремонт, вивіз сміття, тощо)",Оренда нерухомості,362846,Центральний офіс,37413211,Україна,Оренди плата за н/приміщення,26003052628485,current,6000.00,Паламарчук Олена Миколаївна,3085019287,фізична особа
ВОЛЯ,"м. Київ, вул. Грушевського, буд. 1Д",70,2016-12-15,б/н,Банківські послуги,Інші витрати,362845,Центральний офіс,37413211,Україна,Комісія за РКО,26003052628485,current,9.00,"ПАТ КБ ""Приватбанк""",14360570,юридична особа
ВОЛЯ,"м. Київ, вул. Грушевського, буд. 1Д",84,2016-12-15,222,"Заробітна плата, премії","Заробітна плата, лікарняні, вагітності, відрядження, компенсації",362844,Центральний офіс,37413211,Україна,Виплата ЗП 12/2016 аванс на карти,26003052628485,current,9257.50,"ПАТ КБ ""Приватбанк""",14360570,юридична особа
ВОЛЯ,"м. Київ, вул. Володимирська, буд. 69Б",62,2016-12-15,219,Сплата ЄСВ,Податкові платежі,362843,Центральний офіс,37413211,Україна,ЕСВ ЗП 12/2016 аванс,26003052628485,current,2530.00,ДПІ у Голосіївському районі м. Києва,39468461,юридична особа
ВОЛЯ,"м. Київ, вул. Володимирська, буд. 69А",61,2016-12-15,221,Військовий збір,Податкові платежі,362842,Центральний офіс,37413211,Україна,Військ.збір 12/2016 аванс,26003052628485,current,172.50,УДКСУ у Голосіївському районі м. Києва,38039757,юридична особа
ВОЛЯ,"м. Київ, вул. Володимирська, буд. 69А",63,2016-12-15,220,Податок на доходи,Податкові платежі,362841,Центральний офіс,37413211,Україна,ПДФОЗП 12/2016 аванс,26003052628485,current,2070.00,УДКСУ у Голосіївському районі м. Києва,38039757,юридична особа
ВОЛЯ,"м. Київ, вул. Грушевського, буд. 1Д",70,2016-12-06,б/н,Банківські послуги,Інші витрати,362840,Центральний офіс,37413211,Україна,Комісія за РКО,26003052628485,current,3.00,"ПАТ КБ ""Приватбанк""",14360570,юридична особа
ВОЛЯ,"м. Київ, просп. Червонозоряний, буд. 51",76,2016-12-06,218,Послуги зв’язку,Послуги зв’язку,362839,Центральний офіс,37413211,Україна,Послуги зв»язку,26003052628485,current,2000.00,"ПрАТ ""Київстар""",21673832,юридична особа
ВОЛЯ,"м. Київ, вул. Грушевського, буд. 1Д",70,2016-12-02,б/н,Банківські послуги,Інші витрати,362838,Центральний офіс,37413211,Україна,Комісія за РКО,26003052628485,current,9.00,"ПАТ КБ ""Приватбанк""",14360570,юридична особа
ВОЛЯ,"м. Київ, вул. Ілллінська, буд. 9",68,2016-12-02,216,Соцдослідження,"Гонорари, в тому числі за надані консультаційні послуги",362837,Центральний офіс,37413211,Україна,Соціологічне дослідження,26003052628485,current,17010.54,"ТОВ ""Київський міжнародний інститут соціології""",13684906,юридична особа
ВОЛЯ,"м. Київ, просп. Червонозоряний, буд. 51",76,2016-12-02,217,Послуги зв’язку,Послуги зв’язку,362836,Центральний офіс,37413211,Україна,Послуги зв»язку,26003052628485,current,456.00,"ПрАТ ""Київстар""",21673832,юридична особа
ВОЛЯ,"м. Одеса, вул. Мала Арнаутська, буд. 66",76,2016-12-02,218,Послуги зв’язку,Послуги зв’язку,362835,Центральний офіс,37413211,Україна,Послуга зв»язку,26003052628485,current,240.00,"ТОВ ""Інтернаціональні телекомунікації""",30109015,юридична особа
ВОЛЯ,"м. Київ, вул. Потапова, буд. 4, оф. 106",76,2016-12-01,215,Послуги зв’язку,Послуги зв’язку,362834,Центральний офіс,37413211,Україна,Послуги інтернет,26003052628485,current,3328.00,"ТОВ ""УТЕЛС",38590278,юридична особа
ВОЛЯ,"м. Київ, вул. Грушевського, буд. 1Д",70,2016-12-01,б/н,Банківські послуги,Інші витрати,362833,Центральний офіс,37413211,Україна,Комісія за РКО,26003052628485,current,3.00,"ПАТ КБ ""Приватбанк""",14360570,юридична особа
ВОЛЯ,"м. Київ, вул. Грушевського, буд. 1Д",70,2016-12-01,б/н,Банківські послуги,Інші витрати,362832,Центральний офіс,37413211,Україна,Комісія за РКО,26003052628485,current,100.00,"ПАТ КБ ""Приватбанк""",14360570,юридична особа
ВОЛЯ,"м. Київ, вул. Грушевського, буд. 1Д",70,2016-12-01,1.47Е+10,Банківські послуги,Інші витрати,362831,Центральний офіс,37413211,Україна,Комісія за РКО,26003052628485,current,25.77,"ПАТ КБ ""Приватбанк""",14360570,юридична особа
ВОЛЯ,"м. Київ, вул. Грушевського, буд. 1Д",70,2016-11-30,б/н,Банківські послуги,Інші витрати,362830,Центральний офіс,37413211,Україна,Комісія за РКО,26003052628485,current,9.00,"ПАТ КБ ""Приватбанк""",14360570,юридична особа
ВОЛЯ,"м. Київ, вул. Грушевського, буд. 1Д",84,2016-11-30,215,"Заробітна плата, премії","Заробітна плата, лікарняні, вагітності, відрядження, компенсації",362829,Центральний офіс,37413211,Україна,Виплата ЗП ЗП 11/2016 на карти,26003052628485,current,10308.49,"ПАТ КБ ""Приватбанк""",14360570,юридична особа
ВОЛЯ,"м. Київ, вул. Жилянська, буд. 23",62,2016-11-30,212,Сплата ЄСВ,Податкові платежі,362828,Центральний офіс,37413211,Україна,ЕСВЗПЗП 11/2016,26003052628485,current,2817.23,ДПІ у Голосіївському районі м. Києва,39468461,юридична особа
ВОЛЯ,"м. Київ, вул. Володимирська, буд. 69А",61,2016-11-30,214,Військовий збір,Податкові платежі,362827,Центральний офіс,37413211,Україна,Військ.збір ЗПЗП 11/2016,26003052628485,current,192.06,УДКСУ у Голосіївському районі м. Києва,38039757,юридична особа
ВОЛЯ,"м. Київ, вул. Володимирська, буд. 69А",63,2016-11-30,213,Податок на доходи,Податкові платежі,362826,Центральний офіс,37413211,Україна,ПДФО ЗП 11/2016,26003052628485,current,2305.00,УДКСУ у Голосіївському районі м. Києва,38039757,юридична особа
ВОЛЯ,"м. Київ, вул. Грушевського, буд. 1Д",70,2016-11-21,б/н,Банківські послуги,Інші витрати,362825,Центральний офіс,37413211,Україна,Комісія за РКО,26003052628485,current,3.00,"ПАТ КБ ""Приватбанк""",14360570,юридична особа
ВОЛЯ,"м. Київ, вул. Антонова, буд. 5А",78,2016-11-21,211,Оренда обладнання та технічних засобів,Оренда обладнання та технічних засобів,362824,Центральний офіс,37413211,Україна,Оренда кулерів,26003052628485,current,150.00,"""Аквамаркет сервіс""",38791982,юридична особа
ВОЛЯ,"м. Київ, вул. Грушевського, буд. 1Д",70,2016-11-18,б/н,Банківські послуги,Інші витрати,362823,Центральний офіс,37413211,Україна,Комісія за РКО,26003052628485,current,6.00,"ПАТ КБ ""Приватбанк""",14360570,юридична особа
ВОЛЯ,"м. Київ, вул. Хрещатик, буд. 18",52,2016-11-18,210,Інша реклама (без класифікації),Реклама (без класифікації),362822,Центральний офіс,37413211,Україна,Послуги з інформатиз,26003052628485,current,500.00,"ТОВ ""Інформаційне агентство ""УНН""",37535221,юридична особа
ВОЛЯ,"м. Київ, бульв. Лесі Українки, буд. 9",79,2016-11-18,209,"Оренда будинків і приміщень та експлуатаційні витрати (прибирання, страхування орендованих будинків, охорона, сигналізація, ремонт, вивіз сміття, тощо)",Оренда нерухомості,362821,Центральний офіс,37413211,Україна,ідшкодуван комунальних витра,26003052628485,current,4863.36,"СК ""Універсальна""",20113829,юридична особа
ВОЛЯ,"м. Київ, бульв. Лесі Українки, буд. 9",79,2016-11-18,208,"Оренда будинків і приміщень та експлуатаційні витрати (прибирання, страхування орендованих будинків, охорона, сигналізація, ремонт, вивіз сміття, тощо)",Оренда нерухомості,362820,Центральний офіс,37413211,Україна,Орендна плата офісу,26003052628485,current,16000.00,"СК ""Універсальна""",20113829,юридична особа
ВОЛЯ,"м. Київ, вул. Грушевського, буд. 1Д",70,2016-11-17,б/н,Банківські послуги,Інші витрати,362819,Центральний офіс,37413211,Україна,Комісія за РКО,26003052628485,current,6.00,"ПАТ КБ ""Приватбанк""",14360570,юридична особа
ВОЛЯ,"Київська обл., м. Бориспіль, вул. Київский шлях, буд. 98, кв. 16",79,2016-11-17,207,"Оренда будинків і приміщень та експлуатаційні витрати (прибирання, страхування орендованих будинків, охорона, сигналізація, ремонт, вивіз сміття, тощо)",Оренда нерухомості,362818,Центральний офіс,37413211,Україна,Оренди плата за н/приміщення,26003052628485,current,6000.00,Паламарчук Олена Миколаївна,3085019287,фізична особа
ВОЛЯ,"м. Київ, вул. Лейпцизька, буд. 15",76,2016-11-17,206,Послуги зв’язку,Послуги зв’язку,362817,Центральний офіс,37413211,Україна,Послуги зв»язку,26003052628485,current,986.20,"ПрАТ ""ВФ Україна""",14333937,юридична особа
ВОЛЯ,"м. Київ, вул. Грушевського, буд. 1Д",70,2016-11-16,1.47Е+10,Банківські послуги,Інші витрати,362816,Центральний офіс,37413211,Україна,Комісія за РКО,26003052628485,current,22.39,"ПАТ КБ ""Приватбанк""",14360570,юридична особа
ВОЛЯ,"м. Київ, вул. Грушевського, буд. 1Д",70,2016-11-15,б/н,Банківські послуги,Інші витрати,362815,Центральний офіс,37413211,Україна,Комісія за РКО,26003052628485,current,9.00,"ПАТ КБ ""Приватбанк""",14360570,юридична особа
ВОЛЯ,"м. Київ, вул. Грушевського, буд. 1Д",84,2016-11-15,205,"Заробітна плата, премії","Заробітна плата, лікарняні, вагітності, відрядження, компенсації",362814,Центральний офіс,37413211,Україна,Виплата ЗП 11/2016 аванс на карти,26003052628485,current,8955.60,"ПАТ КБ ""Приватбанк""",14360570,юридична особа
ВОЛЯ,"м. Київ, вул. Жилянська, буд. 23",62,2016-11-15,202,Сплата ЄСВ,Податкові платежі,362813,Центральний офіс,37413211,Україна,ЕСВ ЗП 11/2016 аванс,26003052628485,current,2447.50,ДПІ у Голосіївському районі м. Києва,39468461,юридична особа
ВОЛЯ,"м. Київ, вул. Володимирська, буд. 69А",61,2016-11-15,204,Військовий збір,Податкові платежі,362812,Центральний офіс,37413211,Україна,Військ.збір ЗП 11/2016 аванс,26003052628485,current,166.90,УДКСУ у Голосіївському районі м. Києва,38039757,юридична особа
ВОЛЯ,"м. Київ, вул. Володимирська, буд. 69А",63,2016-11-15,203,Податок на доходи,Податкові платежі,362811,Центральний офіс,37413211,Україна,ПДФО ЗП 11/2016 аванс,26003052628485,current,2002.50,УДКСУ у Голосіївському районі м. Києва,38039757,юридична особа
ВОЛЯ,"Житомир, вул. Старовільська, буд. 20/10.",48,2016-11-10,201,Публікування матеріалів у мережі Інтернет,Реклама в інтернеті,362810,Центральний офіс,37413211,Україна,Послуги тех. обслуговування сайту,26003052628485,current,15700.00,Макеєв І О,3151723936,фізична особа
ВОЛЯ,"м. Київ, вул. Грушевського, буд. 1Д",70,2016-11-08,б/н,Банківські послуги,Інші витрати,362809,Центральний офіс,37413211,Україна,Комісія за РКО,26003052628485,current,6.00,"ПАТ КБ ""Приватбанк""",14360570,юридична особа
ВОЛЯ,"м. Київ, просп. Червонозоряний, буд. 51",76,2016-11-08,200,Послуги зв’язку,Послуги зв’язку,362808,Центральний офіс,37413211,Україна,Послуги зв»язку,26003052628485,current,2000.00,"ПрАТ ""Київстар""",21673832,юридична особа
ВОЛЯ,"м. Прилуки, вул. Гвардійська, буд. 96/32",82,2016-11-08,199,"Гонорари, в тому числі за надані консультаційні послуги","Гонорари, в тому числі за надані консультаційні послуги",362807,Центральний офіс,37413211,Україна,Інф-конс.посл інформа,26003052628485,current,1266.00,Крюкова Н І,2022018988,фізична особа
ВОЛЯ,"м. Київ, просп. Червонозоряний, буд. 51",76,2016-11-02,198,Послуги зв’язку,Послуги зв’язку,362806,Центральний офіс,37413211,Україна,Послуги зв»язку,26003052628485,current,456.00,"ПрАТ ""Київстар""",21673832,юридична особа
ВОЛЯ,"м. Київ, вул. Грушевського, буд. 1Д",70,2016-11-02,б/н,Банківські послуги,Інші витрати,362805,Центральний офіс,37413211,Україна,Комісія за РКО,26003052628485,current,9.00,"ПАТ КБ ""Приватбанк""",14360570,юридична особа
ВОЛЯ,"м. Київ, вул. Потапова, буд. 4, оф. 106",76,2016-11-02,196,Послуги зв’язку,Послуги зв’язку,362804,Центральний офіс,37413211,Україна,Послуги інтернет,26003052628485,current,3328.00,"ТОВ ""УТЕЛС",38590278,юридична особа
ВОЛЯ,"м. Одеса, вул. Мала Арнаутська, буд. 66",76,2016-11-02,197,Послуги зв’язку,Послуги зв’язку,362803,Центральний офіс,37413211,Україна,Послуги зв»язку,26003052628485,current,300.00,"ТОВ ""Інтернаціональні телекомунікації""",30109015,юридична особа
ВОЛЯ,"м. Київ, вул. Грушевського, буд. 1Д",70,2016-11-01,"1,47Е+10",Банківські послуги,Інші витрати,362802,Центральний офіс,37413211,Україна,Комісія за РКО,26003052628485,current,28.01,"ПАТ КБ ""Приватбанк""",14360570,юридична особа
ВОЛЯ,"м. Київ, вул. Грушевського, буд. 1Д",70,2016-11-01,б/н,Банківські послуги,Інші витрати,362801,Центральний офіс,37413211,Україна,Комісія за РКО,26003052628485,current,100.00,"ПАТ КБ ""Приватбанк""",14360570,юридична особа
ВОЛЯ,"м. Київ, вул. Грушевського, буд. 1Д",70,2016-10-31,б/н,Банківські послуги,Інші витрати,362800,Центральний офіс,37413211,Україна,Комісія за РКО,26003052628485,current,9.00,"ПАТ КБ ""Приватбанк""",14360570,юридична особа
ВОЛЯ,"м. Київ, вул. Грушевського, буд. 1Д",84,2016-10-31,194,"Заробітна плата, премії","Заробітна плата, лікарняні, вагітності, відрядження, компенсації",362799,Центральний офіс,37413211,Україна,Виплата ЗП 10/2016 на карти,26003052628485,current,11204.04,"ПАТ КБ ""Приватбанк""",14360570,юридична особа
ВОЛЯ,"м. Київ, вул. Жилянська, буд. 23",62,2016-10-31,192,Сплата ЄСВ,Податкові платежі,362798,Центральний офіс,37413211,Україна,ЕСВ ЗП 10/2016,26003052628485,current,3061.98,ДПІ у Голосіївському районі м. Києва,39468461,юридична особа
ВОЛЯ,"м. Київ, вул. Володимирська, буд. 69А",61,2016-10-31,194,Військовий збір,Податкові платежі,362797,Центральний офіс,37413211,Україна,Військ.збір ЗП 10/2016,26003052628485,current,208.76,УДКСУ у Голосіївському районі м. Києва,38039757,юридична особа
ВОЛЯ,"м. Київ, вул. Володимирська, буд. 69А",63,2016-10-31,193,Податок на доходи,Податкові платежі,362796,Центральний офіс,37413211,Україна,ПДФОЗП 10/2016,26003052628485,current,2505.25,УДКСУ у Голосіївському районі м. Києва,38039757,юридична особа
ВОЛЯ,"м. Київ, вул. Грушевського, буд. 1Д",70,2016-10-24,б/н,Банківські послуги,Інші витрати,362795,Центральний офіс,37413211,Україна,Комісія за РКО,26003052628485,current,6.00,"ПАТ КБ ""Приватбанк""",14360570,юридична особа
ВОЛЯ,"м. Київ, бульв. Лесі Українки, буд. 9",79,2016-10-24,191,"Оренда будинків і приміщень та експлуатаційні витрати (прибирання, страхування орендованих будинків, охорона, сигналізація, ремонт, вивіз сміття, тощо)",Оренда нерухомості,362794,Центральний офіс,37413211,Україна,ідшкодуван комунальних витра,26003052628485,current,4090.70,"СК ""Універсальна""",20113829,юридична особа
ВОЛЯ,"м. Київ, бульв. Лесі Українки, буд. 9",79,2016-10-24,190,"Оренда будинків і приміщень та експлуатаційні витрати (прибирання, страхування орендованих будинків, охорона, сигналізація, ремонт, вивіз сміття, тощо)",Оренда нерухомості,362793,Центральний офіс,37413211,Україна,Орендна плата офісу,26003052628485,current,16000.00,"СК ""Універсальна""",20113829,юридична особа
ВОЛЯ,"м. Київ, вул. Грушевського, буд. 1Д",70,2016-10-20,б/н,Банківські послуги,Інші витрати,362792,Центральний офіс,37413211,Україна,Комісія за РКО,26003052628485,current,9.00,"ПАТ КБ ""Приватбанк""",14360570,юридична особа
ВОЛЯ,"м. Київ, вул. Антонова, буд. 5А",78,2016-10-20,189,Оренда обладнання та технічних засобів,Оренда обладнання та технічних засобів,362791,Центральний офіс,37413211,Україна,Оренда кулерів,26003052628485,current,140.00,"""Аквамаркет сервіс""",38791982,юридична особа
ВОЛЯ,"м. Київ, вул. Антонова, буд. 5А",78,2016-10-20,188,Оренда обладнання та технічних засобів,Оренда обладнання та технічних засобів,362790,Центральний офіс,37413211,Україна,Оренда кулерів,26003052628485,current,140.00,"""Аквамаркет сервіс""",38791982,юридична особа
ВОЛЯ,"м. Київ, вул. Антонова, буд. 5А",78,2016-10-20,187,Оренда обладнання та технічних засобів,Оренда обладнання та технічних засобів,362789,Центральний офіс,37413211,Україна,Оренда кулерів,26003052628485,current,140.00,"""Аквамаркет сервіс""",38791982,юридична особа
ВОЛЯ,"м. Київ, вул. Хрещатик, буд. 18",52,2016-10-19,186,Інша реклама (без класифікації),Реклама (без класифікації),362788,Центральний офіс,37413211,Україна,Послуги з інформатиз,26003052628485,current,500.00,"ТОВ ""Інформаційне агентство ""УНН""",37535221,юридична особа
ВОЛЯ,"м. Київ, вул. Грушевського, буд. 1Д",70,2016-10-18,"!,47Е+10",Банківські послуги,Інші витрати,362787,Центральний офіс,37413211,Україна,Комісія за РКО,26003052628485,current,20.15,"ПАТ КБ ""Приватбанк""",14360570,юридична особа
ВОЛЯ,"м. Київ, вул. Грушевського, буд. 1Д",70,2016-10-18,б/н,Банківські послуги,Інші витрати,362786,Центральний офіс,37413211,Україна,Комісія за РКО,26003052628485,current,3.00,"ПАТ КБ ""Приватбанк""",14360570,юридична особа
ВОЛЯ,"Київська обл., м. Бориспіль, вул. Київский шлях, буд. 98, кв. 16",79,2016-10-18,185,"Оренда будинків і приміщень та експлуатаційні витрати (прибирання, страхування орендованих будинків, охорона, сигналізація, ремонт, вивіз сміття, тощо)",Оренда нерухомості,362785,Центральний офіс,37413211,Україна,Оренди плата за н/приміщення,26003052628485,current,6000.00,Паламарчук Олена Миколаївна,3085019287,фізична особа
ВОЛЯ,"м. Київ, вул. Грушевського, буд. 1Д",70,2016-10-17,б/н,Банківські послуги,Інші витрати,362784,Центральний офіс,37413211,Україна,Комісія за РКО,26003052628485,current,9.00,"ПАТ КБ ""Приватбанк""",14360570,юридична особа
ВОЛЯ,"м. Київ, вул. Грушевського, буд. 1Д",84,2016-10-17,184,"Заробітна плата, премії","Заробітна плата, лікарняні, вагітності, відрядження, компенсації",362783,Центральний офіс,37413211,Україна,Виплата ЗП на карти,26003052628485,current,8060.05,"ПАТ КБ ""Приватбанк""",14360570,юридична особа
ВОЛЯ,"м. Київ, вул. Жилянська, буд. 23",62,2016-10-17,181,Сплата ЄСВ,Податкові платежі,362782,Центральний офіс,37413211,Україна,ЕСВ ЗП 10/2016 аванс,26003052628485,current,2202.75,ДПІ у Голосіївському районі м. Києва,39468461,юридична особа
ВОЛЯ,"м. Київ, вул. Володимирська, буд. 69А",61,2016-10-17,183,Військовий збір,Податкові платежі,362781,Центральний офіс,37413211,Україна,Військ.збір 10/2016 аванс,26003052628485,current,150.20,УДКСУ у Голосіївському районі м. Києва,38039757,юридична особа
ВОЛЯ,"м. Київ, вул. Володимирська, буд. 69А",63,2016-10-17,182,Податок на доходи,Податкові платежі,362780,Центральний офіс,37413211,Україна,ПДФОЗП 10/2016 аванс,26003052628485,current,1802.25,УДКСУ у Голосіївському районі м. Києва,38039757,юридична особа
ВОЛЯ,"м. Київ, вул. Грушевського, буд. 1Д",70,2016-10-13,б/н,Банківські послуги,Інші витрати,362779,Центральний офіс,37413211,Україна,Комісія за РКО,26003052628485,current,6.00,"ПАТ КБ ""Приватбанк""",14360570,юридична особа
ВОЛЯ,"м. Київ, вул. Лейпцизька, буд. 15",76,2016-10-13,180,Послуги зв’язку,Послуги зв’язку,362778,Центральний офіс,37413211,Україна,Послуги зв»язку,26003052628485,current,979.23,"ПрАТ ""ВФ Україна""",14333937,юридична особа
ВОЛЯ,"м. Київ, просп. Червонозоряний, буд. 51",76,2016-10-13,179,Послуги зв’язку,Послуги зв’язку,362777,Центральний офіс,37413211,Україна,Послуги зв»язку,26003052628485,current,2000.00,"ПрАТ ""Київстар""",21673832,юридична особа
ВОЛЯ,"м. Київ, просп. Червонозоряний, буд. 51",76,2016-10-04,177,Послуги зв’язку,Послуги зв’язку,362776,Центральний офіс,37413211,Україна,Послуги зв»язку,26003052628485,current,456.00,"ПрАТ ""Київстар""",21673832,юридична особа
ВОЛЯ,"м. Київ, вул. Грушевського, буд. 1Д",70,2016-10-04,б/н,Банківські послуги,Інші витрати,362775,Центральний офіс,37413211,Україна,Комісія за РКО,26003052628485,current,9.00,"ПАТ КБ ""Приватбанк""",14360570,юридична особа
ВОЛЯ,"м. Одеса, вул. Мала Арнаутська, буд. 66",76,2016-10-04,179,Послуги зв’язку,Послуги зв’язку,362774,Центральний офіс,37413211,Україна,Послуги зваязку,26003052628485,current,240.00,"ТОВ ""Інтернаціональні телекомунікації""",30109015,юридична особа
ВОЛЯ,"м. Київ, вул. Потапова, буд. 4, оф. 106",76,2016-10-04,178,Послуги зв’язку,Послуги зв’язку,362773,Центральний офіс,37413211,Україна,Послуги інтернет,26003052628485,current,3328.00,"ТОВ ""УТЕЛС",38590278,юридична особа
ВОЛЯ,"м. Київ, вул. Грушевського, буд. 1Д",70,2016-10-03,б/н,Банківські послуги,Інші витрати,362772,Центральний офіс,37413211,Україна,Комісія за РКО,26003052628485,current,100.00,"ПАТ КБ ""Приватбанк""",14360570,юридична особа
ВОЛЯ,"м. Київ, вул. Грушевського, буд. 1Д",70,2016-10-01,М7Е+10,Банківські послуги,Інші витрати,362771,Центральний офіс,37413211,Україна,Комісія за РКО,26003052628485,current,25.77,"ПАТ КБ ""Приватбанк""",14360570,юридична особа
ВОЛЯ,"м. Київ, вул. Грушевського, буд. 1Д",70,2016-09-30,б/н,Банківські послуги,Інші витрати,362770,Центральний офіс,37413211,Україна,Комісія за РКО,26003052628485,current,9.00,"ПАТ КБ ""Приватбанк""",14360570,юридична особа
ВОЛЯ,"м. Київ, вул. Грушевського, буд. 1Д",84,2016-09-30,176,"Заробітна плата, премії","Заробітна плата, лікарняні, вагітності, відрядження, компенсації",362769,Центральний офіс,37413211,Україна,Виплата ЗП на карти,26003052628485,current,10308.49,"ПАТ КБ ""Приватбанк""",14360570,юридична особа
ВОЛЯ,"м. Київ, вул. Жилянська, буд. 23",62,2016-09-30,173,Сплата ЄСВ,Податкові платежі,362768,Центральний офіс,37413211,Україна,ЕСВ ЗП 09/2016,26003052628485,current,2817.23,ДПІ у Голосіївському районі м. Києва,39468461,юридична особа
ВОЛЯ,"м. Київ, вул. Володимирська, буд. 69А",61,2016-09-30,175,Військовий збір,Податкові платежі,362767,Центральний офіс,37413211,Україна,Військ.збір ЗП 09/16,26003052628485,current,192.06,УДКСУ у Голосіївському районі м. Києва,38039757,юридична особа
ВОЛЯ,"м. Київ, вул. Володимирська, буд. 69А",63,2016-09-30,174,Податок на доходи,Податкові платежі,362766,Центральний офіс,37413211,Україна,ПДФО ЗП 09/2016,26003052628485,current,2305.00,УДКСУ у Голосіївському районі м. Києва,38039757,юридична особа
ВОЛЯ,"м. Київ, вул. Хрещатик, буд. 18",52,2016-09-27,172,Інша реклама (без класифікації),Реклама (без класифікації),362765,Центральний офіс,37413211,Україна,Послуги з інформатиз,26003052628485,current,500.00,"ТОВ ""Інформаційне агентство ""УНН""",37535221,юридична особа
ВОЛЯ,"м. Київ, вул. Грушевського, буд. 1Д",70,2016-09-22,б/н,Банківські послуги,Інші витрати,362764,Центральний офіс,37413211,Україна,Комісія за РКО,26003052628485,current,3.00,"ПАТ КБ ""Приватбанк""",14360570,юридична особа
ВОЛЯ,"Київська обл., м. Бориспіль, вул. Київский шлях, буд. 98, кв. 16",79,2016-09-22,171,"Оренда будинків і приміщень та експлуатаційні витрати (прибирання, страхування орендованих будинків, охорона, сигналізація, ремонт, вивіз сміття, тощо)",Оренда нерухомості,362763,Центральний офіс,37413211,Україна,Оренди плата за н/приміщеїшя,26003052628485,current,6000.00,Паламарчук Олена Миколаївна,3085019287,фізична особа
ВОЛЯ,"м. Київ, вул. Грушевського, буд. 1Д",70,2016-09-21,б/н,Банківські послуги,Інші витрати,362762,Центральний офіс,37413211,Україна,Комісія за РКО,26003052628485,current,6.00,"ПАТ КБ ""Приватбанк""",14360570,юридична особа
ВОЛЯ,"м. Київ, вул. Богдана Хмельницького, буд. 48А",79,2016-09-21,170,"Оренда будинків і приміщень та експлуатаційні витрати (прибирання, страхування орендованих будинків, охорона, сигналізація, ремонт, вивіз сміття, тощо)",Оренда нерухомості,362761,Центральний офіс,37413211,Україна,ідшкодуван комунальних витра,26003052628485,current,4778.71,"СК ""Універсальна""",20113829,юридична особа
ВОЛЯ,"м. Київ, вул. Богдана Хмельницького, буд. 48А",79,2016-09-21,169,"Оренда будинків і приміщень та експлуатаційні витрати (прибирання, страхування орендованих будинків, охорона, сигналізація, ремонт, вивіз сміття, тощо)",Оренда нерухомості,362760,Центральний офіс,37413211,Україна,Орендна плата офісу,26003052628485,current,16000.00,"СК ""Універсальна""",20113829,юридична особа
ВОЛЯ,"м. Київ, вул. Грушевського, буд. 1Д",70,2016-09-16,б/н,Банківські послуги,Інші витрати,362759,Центральний офіс,37413211,Україна,Комісія за РКО,26003052628485,current,22.39,"ПАТ КБ ""Приватбанк""",14360570,юридична особа
ВОЛЯ,"м. Київ, вул. Грушевського, буд. 1Д",70,2016-09-15,б/н,Банківські послуги,Інші витрати,362758,Центральний офіс,37413211,Україна,Комісія за РКО,26003052628485,current,9.00,"ПАТ КБ ""Приватбанк""",14360570,юридична особа
ВОЛЯ,"м. Київ, вул. Грушевського, буд. 1Д",84,2016-09-15,16S,"Заробітна плата, премії","Заробітна плата, лікарняні, вагітності, відрядження, компенсації",362757,Центральний офіс,37413211,Україна,Виплата ЗП на карти,26003052628485,current,8955.60,"ПАТ КБ ""Приватбанк""",14360570,юридична особа
ВОЛЯ,"м. Київ, вул. Жилянська, буд. 23",62,2016-09-15,165,Сплата ЄСВ,Податкові платежі,362756,Центральний офіс,37413211,Україна,ЕСВ ЗП 09/2016,26003052628485,current,2447.50,ДПІ у Голосіївському районі м. Києва,39468461,юридична особа
ВОЛЯ,"м. Київ, вул. Володимирська, буд. 69А",61,2016-09-15,167,Військовий збір,Податкові платежі,362755,Центральний офіс,37413211,Україна,Військ.збір ЗП 09/16,26003052628485,current,166.90,УДКСУ у Голосіївському районі м. Києва,38039757,юридична особа
ВОЛЯ,"м. Київ, вул. Володимирська, буд. 69А",63,2016-09-15,166,Податок на доходи,Податкові платежі,362754,Центральний офіс,37413211,Україна,ПДФО ЗП 09/2016,26003052628485,current,2002.50,УДКСУ у Голосіївському районі м. Києва,38039757,юридична особа
ВОЛЯ,"м. Київ, вул. Грушевського, буд. 1Д",70,2016-09-13,б/н,Банківські послуги,Інші витрати,362753,Центральний офіс,37413211,Україна,Комісія за РКО,26003052628485,current,3.00,"ПАТ КБ ""Приватбанк""",14360570,юридична особа
ВОЛЯ,"м. Київ, вул. Лейпцизька, буд. 15",76,2016-09-13,164,Послуги зв’язку,Послуги зв’язку,362752,Центральний офіс,37413211,Україна,Послуги зв»язку,26003052628485,current,959.45,"ПрАТ ""ВФ Україна""",14333937,юридична особа
ВОЛЯ,"м. Київ, вул. Грушевського, буд. 1Д",70,2016-09-09,б/н,Банківські послуги,Інші витрати,362751,Центральний офіс,37413211,Україна,Комісія за РКО,26003052628485,current,6.00,"ПАТ КБ ""Приватбанк""",14360570,юридична особа
ВОЛЯ,"м. Київ, просп. Червонозоряний, буд. 51",76,2016-09-09,160,Послуги зв’язку,Послуги зв’язку,362750,Центральний офіс,37413211,Україна,Послуги зв»язку,26003052628485,current,2000.00,"ПрАТ ""Київстар""",21673832,юридична особа
ВОЛЯ,"м. Прилуки, вул. Гвардійська, буд. 96/32",82,2016-09-09,161,"Гонорари, в тому числі за надані консультаційні послуги","Гонорари, в тому числі за надані консультаційні послуги",362749,Центральний офіс,37413211,Україна,Інф-конс.посл інформа,26003052628485,current,1266.00,Крюкова Н І,2022018988,фізична особа
ВОЛЯ,"м. Київ, вул. Хрещатик, буд. 18",52,2016-09-09,163,Інша реклама (без класифікації),Реклама (без класифікації),362748,Центральний офіс,37413211,Україна,Послуги з інформатиз,26003052628485,current,500.00,"ТОВ ""Інформаційне агентство ""УНН""",37535221,юридична особа
ВОЛЯ,"м. Київ, вул. Хрещатик, буд. 18",52,2016-09-09,162,Інша реклама (без класифікації),Реклама (без класифікації),362747,Центральний офіс,37413211,Україна,Послуги з інформатиз,26003052628485,current,500.00,"ТОВ ""Інформаційне агентство ""УНН""",37535221,юридична особа
ВОЛЯ,"м. Київ, вул. Грушевського, буд. 1Д",70,2016-09-05,б/н,Банківські послуги,Інші витрати,362746,Центральний офіс,37413211,Україна,Комісія за РКО,26003052628485,current,100.00,"ПАТ КБ ""Приватбанк""",14360570,юридична особа
ВОЛЯ,"м. Київ, вул. Грушевського, буд. 1Д",70,2016-09-02,б/н,Банківські послуги,Інші витрати,362745,Центральний офіс,37413211,Україна,Комісія за РКО,26003052628485,current,9.00,"ПАТ КБ ""Приватбанк""",14360570,юридична особа
ВОЛЯ,"м. Київ, просп. Червонозоряний, буд. 51",76,2016-09-02,159,Послуги зв’язку,Послуги зв’язку,362744,Центральний офіс,37413211,Україна,Послуги зв»язку,26003052628485,current,456.00,"ПрАТ ""Київстар""",21673832,юридична особа
ВОЛЯ,"м. Одеса, вул. Мала Арнаутська, буд. 66",76,2016-09-02,160,Послуги зв’язку,Послуги зв’язку,362743,Центральний офіс,37413211,Україна,Послуги зв»язку,26003052628485,current,240.00,"ТОВ ""Інтернаціональні телекомунікації""",30109015,юридична особа
ВОЛЯ,"м. Київ, вул. Потапова, буд. 4, оф. 106",76,2016-09-02,158,Послуги зв’язку,Послуги зв’язку,362742,Центральний офіс,37413211,Україна,Послуги інтернет,26003052628485,current,3308.00,"ТОВ ""УТЕЛС",38590278,юридична особа
ВОЛЯ,"м. Київ, вул. Грушевського, буд. 1Д",70,2016-09-01,б/н,Банківські послуги,Інші витрати,362741,Центральний офіс,37413211,Україна,Комісія за РКО,26003052628485,current,22.39,"ПАТ КБ ""Приватбанк""",14360570,юридична особа
ВОЛЯ,"м. Київ, вул. Грушевського, буд. 1Д",70,2016-08-31,б/н,Банківські послуги,Інші витрати,362740,Центральний офіс,37413211,Україна,Комісія за РКО,26003052628485,current,9.00,"ПАТ КБ ""Приватбанк""",14360570,юридична особа
ВОЛЯ,"м. Київ, вул. Грушевського, буд. 1Д",84,2016-08-31,158,"Заробітна плата, премії","Заробітна плата, лікарняні, вагітності, відрядження, компенсації",362739,Центральний офіс,37413211,Україна,Виплата ЗП на карти,26003052628485,current,8955.65,"ПАТ КБ ""Приватбанк""",14360570,юридична особа
ВОЛЯ,"м. Київ, вул. Жилянська, буд. 23",62,2016-08-31,155,Сплата ЄСВ,Податкові платежі,362738,Центральний офіс,37413211,Україна,ЕСВ ЗП 08/2016,26003052628485,current,2447.50,ДПІ у Голосіївському районі м. Києва,39468461,юридична особа
ВОЛЯ,"м. Київ, вул. Володимирська, буд. 69А",61,2016-08-31,157,Військовий збір,Податкові платежі,362737,Центральний офіс,37413211,Україна,Військ.збір ЗП 08/16,26003052628485,current,166.85,УДКСУ у Голосіївському районі м. Києва,38039757,юридична особа
ВОЛЯ,"м. Київ, вул. Володимирська, буд. 69А",63,2016-08-31,158,Податок на доходи,Податкові платежі,362736,Центральний офіс,37413211,Україна,ПДФО ЗП 08/2016,26003052628485,current,2002.50,УДКСУ у Голосіївському районі м. Києва,38039757,юридична особа
ВОЛЯ,"м. Київ, вул. Грушевського, буд. 1Д",70,2016-08-18,б/н,Банківські послуги,Інші витрати,362735,Центральний офіс,37413211,Україна,Комісія за РКО,26003052628485,current,6.00,"ПАТ КБ ""Приватбанк""",14360570,юридична особа
ВОЛЯ,"м. Київ, просп. Червонозоряний, буд. 51",76,2016-08-18,154,Послуги зв’язку,Послуги зв’язку,362734,Центральний офіс,37413211,Україна,Послуги зв»язку,26003052628485,current,9192.72,"ПрАТ ""Київстар""",21673832,юридична особа
ВОЛЯ,"м. Київ, вул. Лейпцизька, буд. 15",76,2016-08-18,153,Послуги зв’язку,Послуги зв’язку,362733,Центральний офіс,37413211,Україна,Послуги зв»язку,26003052628485,current,962.00,"ПрАТ ""ВФ Україна""",14333937,юридична особа
ВОЛЯ,"м. Київ, вул. Грушевського, буд. 1Д",70,2016-08-17,б/н,Банківські послуги,Інші витрати,362732,Центральний офіс,37413211,Україна,Комісія за РКО,26003052628485,current,9.00,"ПАТ КБ ""Приватбанк""",14360570,юридична особа
ВОЛЯ,"м. Київ, вул. Богдана Хмельницького, буд. 48А",79,2016-08-17,151,"Оренда будинків і приміщень та експлуатаційні витрати (прибирання, страхування орендованих будинків, охорона, сигналізація, ремонт, вивіз сміття, тощо)",Оренда нерухомості,362731,Центральний офіс,37413211,Україна,ідшкодуван комунальних витра,26003052628485,current,4067.75,"СК ""Універсальна""",20113829,юридична особа
ВОЛЯ,"м. Київ, вул. Богдана Хмельницького, буд. 48А",79,2016-08-17,152,"Оренда будинків і приміщень та експлуатаційні витрати (прибирання, страхування орендованих будинків, охорона, сигналізація, ремонт, вивіз сміття, тощо)",Оренда нерухомості,362730,Центральний офіс,37413211,Україна,Орендна плата офісу,26003052628485,current,16000.00,"СК ""Універсальна""",20113829,юридична особа
ВОЛЯ,"Київська обл., м. Бориспіль, вул. Київский шлях, буд. 98, кв. 16",79,2016-08-17,150,"Оренда будинків і приміщень та експлуатаційні витрати (прибирання, страхування орендованих будинків, охорона, сигналізація, ремонт, вивіз сміття, тощо)",Оренда нерухомості,362729,Центральний офіс,37413211,Україна,Оренди плата за н/приміщення,26003052628485,current,6000.00,Паламарчук Олена Миколаївна,3085019287,фізична особа
ВОЛЯ,"м. Київ, вул. Межигірська, буд. 5, кв. 18",72,2016-08-16,147,"Придбання, ремонт офісної техніки та програмного забезпечення (Бухгалтерські програми, Ліга.закон, домени)",Придбання офісної техніки та програмного забезпечення,362728,Центральний офіс,37413211,Україна,Послуги з інформатиз,26003052628485,current,360.00,"ТОВ ""Ц.І.Т.""",37037811,юридична особа
ВОЛЯ,"м. Київ, вул. Грушевського, буд. 1Д",70,2016-08-16,б/н,Банківські послуги,Інші витрати,362727,Центральний офіс,37413211,Україна,Комісія за РКО,26003052628485,current,25.39,"ПАТ КБ ""Приватбанк""",14360570,юридична особа
ВОЛЯ,"м. Київ, вул. Грушевського, буд. 1Д",70,2016-08-15,б/н,Банківські послуги,Інші витрати,362726,Центральний офіс,37413211,Україна,Комісія за РКО,26003052628485,current,9.00,"ПАТ КБ ""Приватбанк""",14360570,юридична особа
ВОЛЯ,"м. Київ, вул. Жилянська, буд. 23",62,2016-08-15,143,Сплата ЄСВ,Податкові платежі,362724,Центральний офіс,37413211,Україна,ЕСВ ЗП 08/2016,26003052628485,current,2447.50,ДПІ у Голосіївському районі м. Києва,39468461,юридична особа
ВОЛЯ,"м. Київ, вул. Володимирська, буд. 69А",61,2016-08-15,145,Військовий збір,Податкові платежі,362723,Центральний офіс,37413211,Україна,Військ.збір ЗП 08/16,26003052628485,current,166.90,УДКСУ у Голосіївському районі м. Києва,38039757,юридична особа
ВОЛЯ,"м. Київ, вул. Володимирська, буд. 69А",63,2016-08-15,144,Податок на доходи,Податкові платежі,362722,Центральний офіс,37413211,Україна,ПДФО ЗП 08/2016,26003052628485,current,2002.50,УДКСУ у Голосіївському районі м. Києва,38039757,юридична особа
ВОЛЯ,,72,2016-08-09,142,"Придбання, ремонт офісної техніки та програмного забезпечення (Бухгалтерські програми, Ліга.закон, домени)",Придбання офісної техніки та програмного забезпечення,362721,Центральний офіс,37413211,Україна,Оплата пакет оновлень програм МЕБок,26003052628485,current,1260.00,"ТОВ ""Софт Солюшнз""",38800462,юридична особа
ВОЛЯ,"м. Київ, вул. Грушевського, буд. 1Д",70,2016-08-09,б/н,Банківські послуги,Інші витрати,362720,Центральний офіс,37413211,Україна,Комісія за РКО,26003052628485,current,3.00,"ПАТ КБ ""Приватбанк""",14360570,юридична особа
ВОЛЯ,"м. Одеса, вул. Мала Арнаутська, буд. 66",76,2016-08-02,141,Послуги зв’язку,Послуги зв’язку,362719,Центральний офіс,37413211,Україна,Послуги зв»язку,26003052628485,current,240.00,"ТОВ ""Інтернаціональні телекомунікації""",30109015,юридична особа
ВОЛЯ,"м. Київ, просп. Червонозоряний, буд. 51",76,2016-08-02,140,Послуги зв’язку,Послуги зв’язку,362718,Центральний офіс,37413211,Україна,Послуги зв»язку,26003052628485,current,456.00,"ПрАТ ""Київстар""",21673832,юридична особа
ВОЛЯ,"м. Київ, вул. Грушевського, буд. 1Д",70,2016-08-02,б/н,Банківські послуги,Інші витрати,362717,Центральний офіс,37413211,Україна,Комісія за РКО,26003052628485,current,9.00,"ПАТ КБ ""Приватбанк""",14360570,юридична особа
ВОЛЯ,"м. Київ, вул. Потапова, буд. 4, оф. 106",76,2016-08-02,139,Послуги зв’язку,Послуги зв’язку,362716,Центральний офіс,37413211,Україна,Послуги інтернет,26003052628485,current,3308.00,"ТОВ ""УТЕЛС",38590278,юридична особа
ВОЛЯ,"м. Київ, вул. Грушевського, буд. 1Д",70,2016-08-01,б/н,Банківські послуги,Інші витрати,362715,Центральний офіс,37413211,Україна,Комісія за РКО,26003052628485,current,100.00,"ПАТ КБ ""Приватбанк""",14360570,юридична особа
ВОЛЯ,"м. Київ, вул. Грушевського, буд. 1Д",70,2016-07-29,б/н,Банківські послуги,Інші витрати,362714,Центральний офіс,37413211,Україна,Комісія за РКО,26003052628485,current,21.32,"ПАТ КБ ""Приватбанк""",14360570,юридична особа
ВОЛЯ,"м. Київ, вул. Грушевського, буд. 1Д",70,2016-07-29,б/Н,Банківські послуги,Інші витрати,362713,Центральний офіс,37413211,Україна,Комісія за РКО,26003052628485,current,9.00,"ПАТ КБ ""Приватбанк""",14360570,юридична особа
ВОЛЯ,"м. Київ, вул. Грушевського, буд. 1Д",84,2016-07-29,138,"Заробітна плата, премії","Заробітна плата, лікарняні, вагітності, відрядження, компенсації",362712,Центральний офіс,37413211,Україна,Виплата ЗП на карти,26003052628485,current,8529.15,"ПАТ КБ ""Приватбанк""",14360570,юридична особа
ВОЛЯ,"м. Київ, вул. Жилянська, буд. 23",62,2016-07-29,135,Сплата ЄСВ,Податкові платежі,362711,Центральний офіс,37413211,Україна,ЕСВ ЗП 07/2016,26003052628485,current,2330.97,ДПІ у Голосіївському районі м. Києва,39468461,юридична особа
ВОЛЯ,"м. Київ, вул. Володимирська, буд. 69А",61,2016-07-29,137,Військовий збір,Податкові платежі,362710,Центральний офіс,37413211,Україна,Військ.збір ЗП 07/16,26003052628485,current,158.94,УДКСУ у Голосіївському районі м. Києва,38039757,юридична особа
ВОЛЯ,"м. Київ, вул. Володимирська, буд. 69А",63,2016-07-29,136,Податок на доходи,Податкові платежі,362709,Центральний офіс,37413211,Україна,ПДФО ЗП 07/2016,26003052628485,current,1907.16,УДКСУ у Голосіївському районі м. Києва,38039757,юридична особа
ВОЛЯ,"м. Київ, вул. Грушевського, буд. 1Д",70,2016-07-28,б/н,Банківські послуги,Інші витрати,362708,Центральний офіс,37413211,Україна,Комісія за РКО,26003052628485,current,9.00,"ПАТ КБ ""Приватбанк""",14360570,юридична особа
ВОЛЯ,"м. Київ, вул. Антонова, буд. 5А",78,2016-07-28,140,Оренда обладнання та технічних засобів,Оренда обладнання та технічних засобів,362707,Центральний офіс,37413211,Україна,Оренда кулерів,26003052628485,current,140.00,"""Аквамаркет сервіс""",38791982,юридична особа
ВОЛЯ,"м. Київ, вул. Богдана Хмельницького, буд. 48А",79,2016-07-28,135,"Оренда будинків і приміщень та експлуатаційні витрати (прибирання, страхування орендованих будинків, охорона, сигналізація, ремонт, вивіз сміття, тощо)",Оренда нерухомості,362706,Центральний офіс,37413211,Україна,ідшкодуван комунальних витра,26003052628485,current,2867.42,"СК ""Універсальна""",20113829,юридична особа
ВОЛЯ,"м. Київ, вул. Богдана Хмельницького, буд. 48А",79,2016-07-28,134,"Оренда будинків і приміщень та експлуатаційні витрати (прибирання, страхування орендованих будинків, охорона, сигналізація, ремонт, вивіз сміття, тощо)",Оренда нерухомості,362705,Центральний офіс,37413211,Україна,Орендна плата офісу,26003052628485,current,16000.00,"СК ""Універсальна""",20113829,юридична особа
ВОЛЯ,"м. Київ, вул. Грушевського, буд. 1Д",70,2016-07-23,б/н,Банківські послуги,Інші витрати,362704,Центральний офіс,37413211,Україна,Комісія за РКО,26003052628485,current,3.36,"ПАТ КБ ""Приватбанк""",14360570,юридична особа
ВОЛЯ,"м. Київ, вул. Грушевського, буд. 1Д",70,2016-07-22,б/н,Банківські послуги,Інші витрати,362703,Центральний офіс,37413211,Україна,Комісія за РКО,26003052628485,current,18.00,"ПАТ КБ ""Приватбанк""",14360570,юридична особа
ВОЛЯ,"м. Київ, вул. Грушевського, буд. 1Д",84,2016-07-22,б/н,"Заробітна плата, премії","Заробітна плата, лікарняні, вагітності, відрядження, компенсації",362702,Центральний офіс,37413211,Україна,Виплата ЗП на карти,26003052628485,current,1342.91,"ПАТ КБ ""Приватбанк""",14360570,юридична особа
ВОЛЯ,"м. Київ, вул. Жилянська, буд. 23",62,2016-07-22,126,Сплата ЄСВ,Податкові платежі,362701,Центральний офіс,37413211,Україна,ЕСВ ЗП 07/2016,26003052628485,current,140.29,ДПІ у Голосіївському районі м. Києва,39468461,юридична особа
ВОЛЯ,"м. Київ, вул. Володимирська, буд. 69А",61,2016-07-22,128,Військовий збір,Податкові платежі,362700,Центральний офіс,37413211,Україна,Військ.збір ЗП 07/16,26003052628485,current,25.03,УДКСУ у Голосіївському районі м. Києва,38039757,юридична особа
ВОЛЯ,"м. Київ, вул. Володимирська, буд. 69А",63,2016-07-22,127,Податок на доходи,Податкові платежі,362699,Центральний офіс,37413211,Україна,ПДФО ЗП 07/2016,26003052628485,current,300.28,УДКСУ у Голосіївському районі м. Києва,38039757,юридична особа
ВОЛЯ,"м. Київ, вул. Грушевського, буд. 1Д",70,2016-07-18,б/н,Банківські послуги,Інші витрати,362698,Центральний офіс,37413211,Україна,Комісія за РКО,26003052628485,current,3.00,"ПАТ КБ ""Приватбанк""",14360570,юридична особа
ВОЛЯ,"Київська обл., м. Бориспіль, вул. Київский шлях, буд. 98, кв. 16",79,2016-07-18,62,"Оренда будинків і приміщень та експлуатаційні витрати (прибирання, страхування орендованих будинків, охорона, сигналізація, ремонт, вивіз сміття, тощо)",Оренда нерухомості,362697,Центральний офіс,37413211,Україна,Оренди плата за к/приміщення,26003052628485,current,6000.00,Паламарчук Олена Миколаївна,3085019287,фізична особа
ВОЛЯ,"м. Київ, вул. Грушевського, буд. 1Д",70,2016-07-16,б/н,Банківські послуги,Інші витрати,362696,Центральний офіс,37413211,Україна,Комісія за РКО,26003052628485,current,24.98,"ПАТ КБ ""Приватбанк""",14360570,юридична особа
ВОЛЯ,"м. Київ, вул. Грушевського, буд. 1Д",58,2016-07-15,125,"Виготовлення друкованих матеріалів (плакатів, листівок, буклетів та інших агітаційних матеріалів)",Друкована агітація,362695,Центральний офіс,37413211,Україна,Виготовлення інформю бюлетня,26003052628485,current,4100.04,"ПАТ КБ ""Приватбанк""",14360570,юридична особа
ВОЛЯ,"м. Київ, вул. Лейпцизька, буд. 15",76,2016-07-15,124,Послуги зв’язку,Послуги зв’язку,362694,Центральний офіс,37413211,Україна,Послуги зв»язку,26003052628485,current,974.70,"ПрАТ ""ВФ Україна""",14333937,юридична особа
ВОЛЯ,"м. Київ, вул. Грушевського, буд. 1Д",70,2016-07-15,б/н,Банківські послуги,Інші витрати,362693,Центральний офіс,37413211,Україна,Комісія за РКО,26003052628485,current,18.00,"ПАТ КБ ""Приватбанк""",14360570,юридична особа
ВОЛЯ,"м. Київ, вул. Грушевського, буд. 1Д",84,2016-07-15,б/н,"Заробітна плата, премії","Заробітна плата, лікарняні, вагітності, відрядження, компенсації",362692,Центральний офіс,37413211,Україна,Виплата ЗП на карти,26003052628485,current,9993.52,"ПАТ КБ ""Приватбанк""",14360570,юридична особа
ВОЛЯ,"м. Київ, вул. Жилянська, буд. 23",62,2016-07-15,119,Сплата ЄСВ,Податкові платежі,362691,Центральний офіс,37413211,Україна,ЕСВ ЗП 07/2016,26003052628485,current,2627.91,ДПІ у Голосіївському районі м. Києва,39468461,юридична особа
ВОЛЯ,"м. Київ, вул. Володимирська, буд. 69А",61,2016-07-15,122,Військовий збір,Податкові платежі,362690,Центральний офіс,37413211,Україна,Військ.збір ЗП 07/16,26003052628485,current,186.20,УДКСУ у Голосіївському районі м. Києва,38039757,юридична особа
ВОЛЯ,"м. Київ, вул. Володимирська, буд. 69А",63,2016-07-15,І21,Податок на доходи,Податкові платежі,362689,Центральний офіс,37413211,Україна,ПДФО ЗП 07/2016,26003052628485,current,2234.55,УДКСУ у Голосіївському районі м. Києва,38039757,юридична особа
ВОЛЯ,"м. Київ, вул. Грушевського, буд. 1Д",70,2016-07-14,б/н,Банківські послуги,Інші витрати,362688,Центральний офіс,37413211,Україна,Комісія за РКО,26003052628485,current,3.00,"ПАТ КБ ""Приватбанк""",14360570,юридична особа
ВОЛЯ,"м. Київ, вул. Межигірська, буд. 5, кв. 18",72,2016-07-14,118,"Придбання, ремонт офісної техніки та програмного забезпечення (Бухгалтерські програми, Ліга.закон, домени)",Придбання офісної техніки та програмного забезпечення,362687,Центральний офіс,37413211,Україна,Послуги з інформатиз,26003052628485,current,1119.00,"ТОВ ""Ц.І.Т.""",37037811,юридична особа
ВОЛЯ,"м. Київ, вул. Грушевського, буд. 1Д",70,2016-07-11,б/н,Банківські послуги,Інші витрати,362686,Центральний офіс,37413211,Україна,Комісія за РКО,26003052628485,current,3.00,"ПАТ КБ ""Приватбанк""",14360570,юридична особа
ВОЛЯ,"м. Київ, просп. Червонозоряний, буд. 51",76,2016-07-11,117,Послуги зв’язку,Послуги зв’язку,362685,Центральний офіс,37413211,Україна,Послуги зв»язку,26003052628485,current,2270.00,"ПрАТ ""Київстар""",21673832,юридична особа
ВОЛЯ,"м. Одеса, вул. Мала Арнаутська, буд. 66",76,2016-07-04,115,Послуги зв’язку,Послуги зв’язку,362684,Центральний офіс,37413211,Україна,Послуги зв»язку,26003052628485,current,240.00,"ТОВ ""Інтернаціональні телекомунікації""",30109015,юридична особа
ВОЛЯ,"м. Київ, просп. Червонозоряний, буд. 51",76,2016-07-04,116,Послуги зв’язку,Послуги зв’язку,362683,Центральний офіс,37413211,Україна,Послуги зв»язку,26003052628485,current,456.00,"ПрАТ ""Київстар""",21673832,юридична особа
ВОЛЯ,"м. Київ, вул. Грушевського, буд. 1Д",70,2016-07-04,б/н,Банківські послуги,Інші витрати,362682,Центральний офіс,37413211,Україна,Комісія за РКО,26003052628485,current,9.00,"ПАТ КБ ""Приватбанк""",14360570,юридична особа
ВОЛЯ,"м. Київ, вул. Потапова, буд. 4, оф. 106",76,2016-07-04,114,Послуги зв’язку,Послуги зв’язку,362681,Центральний офіс,37413211,Україна,Послуги іктернет,26003052628485,current,3308.00,"ТОВ ""УТЕЛС",38590278,юридична особа
ВОЛЯ,"м. Київ, вул. Грушевського, буд. 1Д",70,2016-07-01,б/н,Банківські послуги,Інші витрати,362680,Центральний офіс,37413211,Україна,Комісія за РКО,26003052628485,current,20.15,"ПАТ КБ ""Приватбанк""",14360570,юридична особа
ВОЛЯ,"м. Київ, вул. Грушевського, буд. 1Д",70,2016-07-01,б/н,Банківські послуги,Інші витрати,362679,Центральний офіс,37413211,Україна,Комісія за РКО,26003052628485,current,100.00,"ПАТ КБ ""Приватбанк""",14360570,юридична особа
ВОЛЯ,"м. Львів, вул. Сахарова, буд. 78",70,2016-06-30,,Банківські послуги,Інші витрати,362870,Сокальська районна організація,40001460,Львівська область,Комісія за РКО,2600501664565,current,20.00,"ПАТ ""Кредобанк""",09807862,юридична особа
ВОЛЯ,"м. Київ, вул. Грушевського, буд. 1Д",70,2016-06-30,б/н,Банківські послуги,Інші витрати,362678,Центральний офіс,37413211,Україна,Комісія за РКО,26003052628485,current,12.00,"ПАТ КБ ""Приватбанк""",14360570,юридична особа
ВОЛЯ,"м. Київ, вул. Грушевського, буд. 1Д",84,2016-06-30,б/н,"Заробітна плата, премії","Заробітна плата, лікарняні, вагітності, відрядження, компенсації",362677,Центральний офіс,37413211,Україна,Виплата ЗП на карти,26003052628485,current,8060.05,"ПАТ КБ ""Приватбанк""",14360570,юридична особа
ВОЛЯ,"м. Київ, вул. Жилянська, буд. 23",62,2016-06-30,103,Сплата ЄСВ,Податкові платежі,362676,Центральний офіс,37413211,Україна,ЕСВ ЗП 06/2016,26003052628485,current,2114.08,ДПІ у Голосіївському районі м. Києва,39468461,юридична особа
ВОЛЯ,"м. Київ, вул. Володимирська, буд. 69А",61,2016-06-30,100,Військовий збір,Податкові платежі,362675,Центральний офіс,37413211,Україна,Військ.збір ЗП 06/16,26003052628485,current,150.20,УДКСУ у Голосіївському районі м. Києва,38039757,юридична особа
ВОЛЯ,"м. Київ, вул. Володимирська, буд. 69А",63,2016-06-30,99,Податок на доходи,Податкові платежі,362674,Центральний офіс,37413211,Україна,ПДФО ЗП 06/2016,26003052628485,current,1802.25,УДКСУ у Голосіївському районі м. Києва,38039757,юридична особа
ВОЛЯ,"м. Київ, вул. Хрещатик, буд. 18",52,2016-06-23,109,Інша реклама (без класифікації),Реклама (без класифікації),362673,Центральний офіс,37413211,Україна,Послуги з інформатиз,26003052628485,current,500.00,"ТОВ ""Інформаційне агентство ""УНН""",37535221,юридична особа
ВОЛЯ,"м. Київ, вул. Грушевського, буд. 1Д",70,2016-06-22,б/н,Банківські послуги,Інші витрати,362672,Центральний офіс,37413211,Україна,Комісія за РКО,26003052628485,current,6.00,"ПАТ КБ ""Приватбанк""",14360570,юридична особа
ВОЛЯ,"м. Київ, вул. Богдана Хмельницького, буд. 48А",79,2016-06-22,108,"Оренда будинків і приміщень та експлуатаційні витрати (прибирання, страхування орендованих будинків, охорона, сигналізація, ремонт, вивіз сміття, тощо)",Оренда нерухомості,362671,Центральний офіс,37413211,Україна,ідшкодуван комунальних витра,26003052628485,current,2236.89,"СК ""Універсальна""",20113829,юридична особа
ВОЛЯ,"м. Київ, вул. Богдана Хмельницького, буд. 48А",79,2016-06-22,107,"Оренда будинків і приміщень та експлуатаційні витрати (прибирання, страхування орендованих будинків, охорона, сигналізація, ремонт, вивіз сміття, тощо)",Оренда нерухомості,362670,Центральний офіс,37413211,Україна,Орендна плата офісу,26003052628485,current,16000.00,"СК ""Універсальна""",20113829,юридична особа
ВОЛЯ,"м. Київ, вул. Грушевського, буд. 1Д",70,2016-06-17,б/н,Банківські послуги,Інші витрати,362669,Центральний офіс,37413211,Україна,Комісія за РКО,26003052628485,current,3.00,"ПАТ КБ ""Приватбанк""",14360570,юридична особа
ВОЛЯ,"м. Київ, вул. Межигірська, буд. 5, кв. 18",72,2016-06-17,106,"Придбання, ремонт офісної техніки та програмного забезпечення (Бухгалтерські програми, Ліга.закон, домени)",Придбання офісної техніки та програмного забезпечення,362668,Центральний офіс,37413211,Україна,Послуги з інформатиз,26003052628485,current,3115.00,"ТОВ ""Ц.І.Т.""",37037811,юридична особа
ВОЛЯ,"м. Київ, вул. Грушевського, буд. 1Д",70,2016-06-16,б/н,Банківські послуги,Інші витрати,362667,Центральний офіс,37413211,Україна,Комісія за РКО,26003052628485,current,24.63,"ПАТ КБ ""Приватбанк""",14360570,юридична особа
ВОЛЯ,"м. Київ, просп. Червонозоряний, буд. 51",76,2016-06-15,105,Послуги зв’язку,Послуги зв’язку,362666,Центральний офіс,37413211,Україна,Послуги зв»язку,26003052628485,current,2395.00,"ПрАТ ""Київстар""",21673832,юридична особа
ВОЛЯ,"м. Київ, вул. Грушевського, буд. 1Д",70,2016-06-15,б/н,Банківські послуги,Інші витрати,362665,Центральний офіс,37413211,Україна,Комісія за РКО,26003052628485,current,15.00,"ПАТ КБ ""Приватбанк""",14360570,юридична особа
ВОЛЯ,"м. Київ, вул. Грушевського, буд. 1Д",84,2016-06-15,б/н,"Заробітна плата, премії","Заробітна плата, лікарняні, вагітності, відрядження, компенсації",362664,Центральний офіс,37413211,Україна,Виплата ЗП на карти,26003052628485,current,9851.20,"ПАТ КБ ""Приватбанк""",14360570,юридична особа
ВОЛЯ,"м. Київ, вул. Жилянська, буд. 23",62,2016-06-15,103,Сплата ЄСВ,Податкові платежі,362663,Центральний офіс,37413211,Україна,ЕСВ ЗП 06/2016,26003052628485,current,2583.87,ДПІ у Голосіївському районі м. Києва,39468461,юридична особа
ВОЛЯ,"м. Київ, вул. Володимирська, буд. 69А",61,2016-06-15,100,Військовий збір,Податкові платежі,362662,Центральний офіс,37413211,Україна,Військ.збїр ЗП 06/16,26003052628485,current,183.55,УДКСУ у Голосіївському районі м. Києва,38039757,юридична особа
ВОЛЯ,"м. Київ, вул. Володимирська, буд. 69А",63,2016-06-15,99,Податок на доходи,Податкові платежі,362661,Центральний офіс,37413211,Україна,ПДФО ЗП 06/2016,26003052628485,current,2202.75,УДКСУ у Голосіївському районі м. Києва,38039757,юридична особа
ВОЛЯ,"м. Київ, вул. Лейпцизька, буд. 15",76,2016-06-13,97,Послуги зв’язку,Послуги зв’язку,362660,Центральний офіс,37413211,Україна,Послуги зв»язку,26003052628485,current,964.56,"ПрАТ ""ВФ Україна""",14333937,юридична особа
ВОЛЯ,"м. Київ, вул. Грушевського, буд. 1Д",70,2016-06-10,б/н,Банківські послуги,Інші витрати,362659,Центральний офіс,37413211,Україна,Комісія за РКО,26003052628485,current,6.00,"ПАТ КБ ""Приватбанк""",14360570,юридична особа
ВОЛЯ,"Київська обл., м. Бориспіль, вул. Київский шлях, буд. 98, кв. 16",79,2016-06-10,96,"Оренда будинків і приміщень та експлуатаційні витрати (прибирання, страхування орендованих будинків, охорона, сигналізація, ремонт, вивіз сміття, тощо)",Оренда нерухомості,362658,Центральний офіс,37413211,Україна,Оренди плата за н/приміщення,26003052628485,current,6000.00,Паламарчук Олена Миколаївна,3085019287,фізична особа
ВОЛЯ,"м. Київ, вул. Грушевського, буд. 1Д",70,2016-06-02,б/н,Банківські послуги,Інші витрати,362657,Центральний офіс,37413211,Україна,Комісія за РКО,26003052628485,current,24.96,"ПАТ КБ ""Приватбанк""",14360570,юридична особа
ВОЛЯ,"м. Київ, просп. Червонозоряний, буд. 51",76,2016-06-01,95,Послуги зв’язку,Послуги зв’язку,362656,Центральний офіс,37413211,Україна,Послуги зв»язку,26003052628485,current,456.00,"ПрАТ ""Київстар""",21673832,юридична особа
ВОЛЯ,"м. Одеса, вул. Мала Арнаутська, буд. 66",76,2016-06-01,94,Послуги зв’язку,Послуги зв’язку,362655,Центральний офіс,37413211,Україна,Послуги зв»язку,26003052628485,current,240.00,"ТОВ ""Інтернаціональні телекомунікації""",30109015,юридична особа
ВОЛЯ,"м. Київ, вул. Потапова, буд. 4, оф. 106",76,2016-06-01,93,Послуги зв’язку,Послуги зв’язку,362654,Центральний офіс,37413211,Україна,Послуги інтернет,26003052628485,current,3291.00,"ТОВ ""УТЕЛС",38590278,юридична особа
ВОЛЯ,"м. Київ, вул. Грушевського, буд. 1Д",70,2016-06-01,б/н,Банківські послуги,Інші витрати,362653,Центральний офіс,37413211,Україна,Комісія за РКО,26003052628485,current,109.00,"ПАТ КБ ""Приватбанк""",14360570,юридична особа
ВОЛЯ,"м. Київ, вул. Грушевського, буд. 1Д",70,2016-05-31,б/н,Банківські послуги,Інші витрати,362652,Центральний офіс,37413211,Україна,Комісія за РКО,26003052628485,current,12.00,"ПАТ КБ ""Приватбанк""",14360570,юридична особа
ВОЛЯ,"м. Київ, вул. Грушевського, буд. 1Д",84,2016-05-31,б/н,"Заробітна плата, премії","Заробітна плата, лікарняні, вагітності, відрядження, компенсації",362651,Центральний офіс,37413211,Україна,Виплата ЗП на карти,26003052628485,current,9982.00,"ПАТ КБ ""Приватбанк""",14360570,юридична особа
ВОЛЯ,"м. Київ, вул. Жилянська, буд. 23",62,2016-05-31,78,Сплата ЄСВ,Податкові платежі,362650,Центральний офіс,37413211,Україна,ЕСВ ЗП 05/2016,26003052628485,current,2603.54,ДПІ у Голосіївському районі м. Києва,39468461,юридична особа
ВОЛЯ,"м. Київ, вул. Володимирська, буд. 69А",61,2016-05-31,77,Військовий збір,Податкові платежі,362649,Центральний офіс,37413211,Україна,Військ.збір ЗП 05/16,26003052628485,current,186.01,УДКСУ у Голосіївському районі м. Києва,38039757,юридична особа
ВОЛЯ,"м. Київ, вул. Володимирська, буд. 69А",63,2016-05-31,76,Податок на доходи,Податкові платежі,362648,Центральний офіс,37413211,Україна,ПДФО ЗП 05/2016,26003052628485,current,2231.99,УДКСУ у Голосіївському районі м. Києва,38039757,юридична особа
ВОЛЯ,"м. Київ, вул. Хрещатик, буд. 18",52,2016-05-30,56,Інша реклама (без класифікації),Реклама (без класифікації),362647,Центральний офіс,37413211,Україна,Послуги з інформатиз,26003052628485,current,500.00,"ТОВ ""Інформаційне агентство ""УНН""",37535221,юридична особа
ВОЛЯ,"м. Київ, вул. Грушевського, буд. 1Д",70,2016-05-26,б/н,Банківські послуги,Інші витрати,362646,Центральний офіс,37413211,Україна,Комісія за РКО,26003052628485,current,3.00,"ПАТ КБ ""Приватбанк""",14360570,юридична особа
ВОЛЯ,"м. Київ, вул. Антонова, буд. 5А",78,2016-05-26,55,Оренда обладнання та технічних засобів,Оренда обладнання та технічних засобів,362645,Центральний офіс,37413211,Україна,Оренда кулерів,26003052628485,current,140.00,"""Аквамаркет сервіс""",38791982,юридична особа
ВОЛЯ,"м. Київ, вул. Золотоустівська, буд. 10-12, оф. 4",43,2016-05-25,85,Інші витрати,Інші витрати,362644,Центральний офіс,37413211,Україна,Участь у акції,26003052628485,current,500.00,"Благодійна організація ""Благодійний фонд ""Пробіг під каштанами""",37536047,юридична особа
ВОЛЯ,"м. Прилуки, вул. Гвардійська, буд. 96/32",82,2016-05-20,84,"Гонорари, в тому числі за надані консультаційні послуги","Гонорари, в тому числі за надані консультаційні послуги",362643,Центральний офіс,37413211,Україна,Інф-конс.посл інформа,26003052628485,current,1266.00,Крюкова Н І,2022018988,фізична особа
ВОЛЯ,"м. Київ, вул. Грушевського, буд. 1Д",70,2016-05-20,б/н,Банківські послуги,Інші витрати,362642,Центральний офіс,37413211,Україна,Комісія за РКО,26003052628485,current,3.00,"ПАТ КБ ""Приватбанк""",14360570,юридична особа
ВОЛЯ,"м. Київ, вул. Грушевського, буд. 1Д",84,2016-05-18,146,"Заробітна плата, премії","Заробітна плата, лікарняні, вагітності, відрядження, компенсації",362725,Центральний офіс,37413211,Україна,Виплата ЗП на карти,26003052628485,current,8955.60,"ПАТ КБ ""Приватбанк""",14360570,юридична особа
ВОЛЯ,"м. Київ, вул. Грушевського, буд. 1Д",70,2016-05-18,б/н,Банківські послуги,Інші витрати,362641,Центральний офіс,37413211,Україна,Комісія за РКО,26003052628485,current,22.23,"ПАТ КБ ""Приватбанк""",14360570,юридична особа
ВОЛЯ,"м. Київ, вул. Богдана Хмельницького, буд. 48А",79,2016-05-18,64,"Оренда будинків і приміщень та експлуатаційні витрати (прибирання, страхування орендованих будинків, охорона, сигналізація, ремонт, вивіз сміття, тощо)",Оренда нерухомості,362640,Центральний офіс,37413211,Україна,ідшкодуван комунальних витра,26003052628485,current,3452.20,"СК ""Універсальна""",20113829,юридична особа
ВОЛЯ,"м. Київ, вул. Богдана Хмельницького, буд. 48А",79,2016-05-18,83,"Оренда будинків і приміщень та експлуатаційні витрати (прибирання, страхування орендованих будинків, охорона, сигналізація, ремонт, вивіз сміття, тощо)",Оренда нерухомості,362639,Центральний офіс,37413211,Україна,Орендна плата офісу,26003052628485,current,16000.00,"СК ""Універсальна""",20113829,юридична особа
ВОЛЯ,"м. Київ, вул. Лейпцизька, буд. 15",76,2016-05-18,82,Послуги зв’язку,Послуги зв’язку,362638,Центральний офіс,37413211,Україна,Послуги зв»язку,26003052628485,current,1069.10,"ПрАТ ""ВФ Україна""",14333937,юридична особа
ВОЛЯ,"м. Київ, просп. Червонозоряний, буд. 51",76,2016-05-18,81,Послуги зв’язку,Послуги зв’язку,362637,Центральний офіс,37413211,Україна,Послуги зв»язку,26003052628485,current,2127.20,"ПрАТ ""Київстар""",21673832,юридична особа
ВОЛЯ,"Київська обл., м. Бориспіль, вул. Київский шлях, буд. 98, кв. 16",79,2016-05-17,80,"Оренда будинків і приміщень та експлуатаційні витрати (прибирання, страхування орендованих будинків, охорона, сигналізація, ремонт, вивіз сміття, тощо)",Оренда нерухомості,362636,Центральний офіс,37413211,Україна,Оренда плата за н/приміщекня,26003052628485,current,6000.00,Паламарчук Олена Миколаївна,3085019287,фізична особа
ВОЛЯ,"м. Київ, вул. Грушевського, буд. 1Д",70,2016-05-17,б/н,Банківські послуги,Інші витрати,362635,Центральний офіс,37413211,Україна,Комісія за РКО,26003052628485,current,15.00,"ПАТ КБ ""Приватбанк""",14360570,юридична особа
ВОЛЯ,"м. Київ, вул. Грушевського, буд. 1Д",84,2016-05-17,б/н,"Заробітна плата, премії","Заробітна плата, лікарняні, вагітності, відрядження, компенсації",362634,Центральний офіс,37413211,Україна,Виплата ЗП на карти,26003052628485,current,4092.79,"ПАТ КБ ""Приватбанк""",14360570,юридична особа
ВОЛЯ,"м. Київ, вул. Жилянська, буд. 23",62,2016-05-17,78,Сплата ЄСВ,Податкові платежі,362633,Центральний офіс,37413211,Україна,ЕСВ ЗП 05/2016,26003052628485,current,1045.94,ДПІ у Голосіївському районі м. Києва,39468461,юридична особа
ВОЛЯ,"м. Київ, вул. Володимирська, буд. 69А",61,2016-05-17,77,Військовий збір,Податкові платежі,362632,Центральний офіс,37413211,Україна,Військ.збір ЗП 05/16,26003052628485,current,76.25,УДКСУ у Голосіївському районі м. Києва,38039757,юридична особа
ВОЛЯ,"м. Київ, вул. Володимирська, буд. 69А",63,2016-05-17,76,Податок на доходи,Податкові платежі,362631,Центральний офіс,37413211,Україна,ПДФО ЗП 05/2016,26003052628485,current,915.17,УДКСУ у Голосіївському районі м. Києва,38039757,юридична особа
ВОЛЯ,"м. Київ, вул. Грушевського, буд. 1Д",70,2016-05-13,б/н,Банківські послуги,Інші витрати,362630,Центральний офіс,37413211,Україна,Комісія за РКО,26003052628485,current,3.00,"ПАТ КБ ""Приватбанк""",14360570,юридична особа
ВОЛЯ,"м. Одеса, вул. Мала Арнаутська, буд. 66",76,2016-05-13,73,Послуги зв’язку,Послуги зв’язку,362629,Центральний офіс,37413211,Україна,Послуги зв»язку,26003052628485,current,240.00,"ТОВ ""Інтернаціональні телекомунікації""",30109015,юридична особа
ВОЛЯ,"м. Київ, вул. Грушевського, буд. 1Д",70,2016-05-10,б/н,Банківські послуги,Інші витрати,362628,Центральний офіс,37413211,Україна,Комісія за РКО,26003052628485,current,3.00,"ПАТ КБ ""Приватбанк""",14360570,юридична особа
ВОЛЯ,"м. Київ, просп. Червонозоряний, буд. 51",76,2016-05-10,72,Послуги зв’язку,Послуги зв’язку,362627,Центральний офіс,37413211,Україна,Послуги звяязку,26003052628485,current,456.00,"ПрАТ ""Київстар""",21673832,юридична особа
ВОЛЯ,"м. Київ, вул. Грушевського, буд. 1Д",70,2016-05-04,б/н,Банківські послуги,Інші витрати,362626,Центральний офіс,37413211,Україна,Комісія за РКО,26003052628485,current,100.00,"ПАТ КБ ""Приватбанк""",14360570,юридична особа
ВОЛЯ,"м. Київ, вул. Грушевського, буд. 1Д",70,2016-04-30,б/н,Банківські послуги,Інші витрати,362625,Центральний офіс,37413211,Україна,Комісія за РКО,26003052628485,current,12.95,"ПАТ КБ ""Приватбанк""",14360570,юридична особа
ВОЛЯ,"м. Київ, вул. Потапова, буд. 4, оф. 106",76,2016-04-29,51,Послуги зв’язку,Послуги зв’язку,362624,Центральний офіс,37413211,Україна,Послуги іктернет,26003052628485,current,3291.00,"ТОВ ""УТЕЛС",38590278,юридична особа
ВОЛЯ,"м. Київ, вул. Грушевського, буд. 1Д",70,2016-04-29,б/н,Банківські послуги,Інші витрати,362623,Центральний офіс,37413211,Україна,Комісія за РКО,26003052628485,current,15.00,"ПАТ КБ ""Приватбанк""",14360570,юридична особа
ВОЛЯ,"м. Київ, вул. Грушевського, буд. 1Д",84,2016-04-29,б/н,"Заробітна плата, премії","Заробітна плата, лікарняні, вагітності, відрядження, компенсації",362622,Центральний офіс,37413211,Україна,Виплата ЗП на карти,26003052628485,current,5179.63,"ПАТ КБ ""Приватбанк""",14360570,юридична особа
ВОЛЯ,"м. Київ, вул. Жилянська, буд. 23",62,2016-04-29,69,Сплата ЄСВ,Податкові платежі,362621,Центральний офіс,37413211,Україна,ЕСВ ЗП 04/2016,26003052628485,current,1326.36,ДПІ у Голосіївському районі м. Києва,39468461,юридична особа
ВОЛЯ,"м. Київ, вул. Володимирська, буд. 69А",61,2016-04-29,66,Військовий збір,Податкові платежі,362620,Центральний офіс,37413211,Україна,Військ.збір ЗП 04/16,26003052628485,current,96.50,УДКСУ у Голосіївському районі м. Києва,38039757,юридична особа
ВОЛЯ,"м. Київ, вул. Володимирська, буд. 69А",63,2016-04-29,67,Податок на доходи,Податкові платежі,362619,Центральний офіс,37413211,Україна,ПДФО ЗП 04/2016,26003052628485,current,1158.15,УДКСУ у Голосіївському районі м. Києва,38039757,юридична особа
ВОЛЯ,,60,2016-04-19,65,Інші податки,Податкові платежі,362618,Центральний офіс,37413211,Україна,Держави реєстр газети,26003052628485,current,2040.00,ГУ ДКСУ у м. Києві,37993783,юридична особа
ВОЛЯ,"м. Київ, вул. Грушевського, буд. 1Д",70,2016-04-19,б/н,Банківські послуги,Інші витрати,362617,Центральний офіс,37413211,Україна,Комісія за РКО,26003052628485,current,3.00,"ПАТ КБ ""Приватбанк""",14360570,юридична особа
ВОЛЯ,"Київ, вул. Хмельницького, буд. 48 А",79,2016-04-18,64,"Оренда будинків і приміщень та експлуатаційні витрати (прибирання, страхування орендованих будинків, охорона, сигналізація, ремонт, вивіз сміття, тощо)",Оренда нерухомості,362616,Центральний офіс,37413211,Україна,ідшкодуван комунальних витра,26003052628485,current,3513.26,"СК ""Універсальна""",20113829,юридична особа
ВОЛЯ,"м. Київ, вул. Богдана Хмельницького, буд. 48А",79,2016-04-18,63,"Оренда будинків і приміщень та експлуатаційні витрати (прибирання, страхування орендованих будинків, охорона, сигналізація, ремонт, вивіз сміття, тощо)",Оренда нерухомості,362615,Центральний офіс,37413211,Україна,Орендна плата офісу,26003052628485,current,16000.00,"СК ""Універсальна""",20113829,юридична особа
ВОЛЯ,"м. Київ, вул. Грушевського, буд. 1Д",70,2016-04-18,б/н,Банківські послуги,Інші витрати,362614,Центральний офіс,37413211,Україна,Комісія за РКО,26003052628485,current,6.00,"ПАТ КБ ""Приватбанк""",14360570,юридична особа
ВОЛЯ,"м. Київ, вул. Грушевського, буд. 1Д",43,2016-04-16,б/н,Інші витрати,Інші витрати,362869,Київська міська організація,37716506,Київ,Опл за товари та послуги(карта),26003052646188,current,200.00,"ПАТ КБ ""Приватбанк""",14360570,юридична особа
ВОЛЯ,"м. Київ, вул. Грушевського, буд. 1Д",70,2016-04-16,б/н,Банківські послуги,Інші витрати,362613,Центральний офіс,37413211,Україна,Комісія за РКО,26003052628485,current,14.24,"ПАТ КБ ""Приватбанк""",14360570,юридична особа
ВОЛЯ,"Київська обл., м. Бориспіль, вул. Київский шлях, буд. 98, кв. 16",79,2016-04-15,62,"Оренда будинків і приміщень та експлуатаційні витрати (прибирання, страхування орендованих будинків, охорона, сигналізація, ремонт, вивіз сміття, тощо)",Оренда нерухомості,362612,Центральний офіс,37413211,Україна,Оренда плата за н/приміщення,26003052628485,current,6000.00,Паламарчук Олена Миколаївна,3085019287,фізична особа
ВОЛЯ,"м. Київ, вул. Грушевського, буд. 1Д",70,2016-04-15,б/н,Банківські послуги,Інші витрати,362611,Центральний офіс,37413211,Україна,Комісія за РКО,26003052628485,current,15.00,"ПАТ КБ ""Приватбанк""",14360570,юридична особа
ВОЛЯ,"м. Київ, вул. Грушевського, буд. 1Д",84,2016-04-15,б/н,"Заробітна плата, премії","Заробітна плата, лікарняні, вагітності, відрядження, компенсації",362610,Центральний офіс,37413211,Україна,Виплата ЗП на карти,26003052628485,current,5697.53,"ПАТ КБ ""Приватбанк""",14360570,юридична особа
ВОЛЯ,"м. Київ, вул. Жилянська, буд. 23",62,2016-04-15,59,Сплата ЄСВ,Податкові платежі,362609,Центральний офіс,37413211,Україна,ЕСВ ЗП 04/2016,26003052628485,current,1459.01,ДПІ у Голосіївському районі м. Києва,39468461,юридична особа
ВОЛЯ,"м. Київ, вул. Володимирська, буд. 69А",61,2016-04-15,58,Військовий збір,Податкові платежі,362608,Центральний офіс,37413211,Україна,Вшськ.збір ЗП 04/16,26003052628485,current,106.18,УДКСУ у Голосіївському районі м. Києва,38039757,юридична особа
ВОЛЯ,"м. Київ, вул. Володимирська, буд. 69А",63,2016-04-15,57,Податок на доходи,Податкові платежі,362607,Центральний офіс,37413211,Україна,ПДФО ЗП 04/2016,26003052628485,current,1274.01,УДКСУ у Голосіївському районі м. Києва,38039757,юридична особа
ВОЛЯ,"м. Київ, вул. Хрещатик, буд. 18",52,2016-04-13,56,Інша реклама (без класифікації),Реклама (без класифікації),362606,Центральний офіс,37413211,Україна,Послуги з інформатиз,26003052628485,current,500.00,"ТОВ ""Інформаційне агентство ""УНН""",37535221,юридична особа
ВОЛЯ,"м. Київ, вул. Грушевського, буд. 1Д",70,2016-04-11,б/н,Банківські послуги,Інші витрати,362605,Центральний офіс,37413211,Україна,Комісія за РКО,26003052628485,current,12.00,"ПАТ КБ ""Приватбанк""",14360570,юридична особа
ВОЛЯ,"м. Київ, вул. Антонова, буд. 5А",78,2016-04-11,55,Оренда обладнання та технічних засобів,Оренда обладнання та технічних засобів,362604,Центральний офіс,37413211,Україна,Оренда кулерів,26003052628485,current,140.00,"""Аквамаркет сервіс""",38791982,юридична особа
ВОЛЯ,"м. Прилуки, вул. Гвардійська, буд. 96/32",82,2016-04-11,54,"Гонорари, в тому числі за надані консультаційні послуги","Гонорари, в тому числі за надані консультаційні послуги",362603,Центральний офіс,37413211,Україна,Інф-конс.посл інформа,26003052628485,current,792.50,Крюкова Н І,2022018988,фізична особа
ВОЛЯ,"м. Київ, просп. Червонозоряний, буд. 51",76,2016-04-11,53,Послуги зв’язку,Послуги зв’язку,362602,Центральний офіс,37413211,Україна,Послуги звяязку,26003052628485,current,2100.00,"ПрАТ ""Київстар""",21673832,юридична особа
ВОЛЯ,"м. Київ, вул. Лейпцизька, буд. 15",76,2016-04-11,56,Послуги зв’язку,Послуги зв’язку,362601,Центральний офіс,37413211,Україна,Послуги зв»язку,26003052628485,current,996.74,"ПрАТ ""ВФ Україна""",14333937,юридична особа
ВОЛЯ,"м. Київ, вул. Грушевського, буд. 1Д",70,2016-04-06,б/н,Банківські послуги,Інші витрати,362868,Київська міська організація,37716506,Київ,Комісія за РКО,26003052646188,current,100.00,"ПАТ КБ ""Приватбанк""",14360570,юридична особа
ВОЛЯ,"м. Київ, вул. Грушевського, буд. 1Д",43,2016-04-05,б/н,Інші витрати,Інші витрати,362867,Київська міська організація,37716506,Київ,Опл за товари та послуги(карта),26003052646188,current,102.00,"ПАТ КБ ""Приватбанк""",14360570,юридична особа
ВОЛЯ,"м. Київ, вул. Грушевського, буд. 1Д",70,2016-04-05,б/н,Банківські послуги,Інші витрати,362600,Центральний офіс,37413211,Україна,Комісія за РКО,26003052628485,current,3.00,"ПАТ КБ ""Приватбанк""",14360570,юридична особа
ВОЛЯ,"м. Київ, просп. Червонозоряний, буд. 51",76,2016-04-05,52,Послуги зв’язку,Послуги зв’язку,362599,Центральний офіс,37413211,Україна,Послуги зв»язку,26003052628485,current,456.00,"ПрАТ ""Київстар""",21673832,юридична особа
ВОЛЯ,"м. Київ, вул. Грушевського, буд. 1Д",70,2016-04-04,б/н,Банківські послуги,Інші витрати,362598,Центральний офіс,37413211,Україна,Комісія за РКО,26003052628485,current,3.00,"ПАТ КБ ""Приватбанк""",14360570,юридична особа
ВОЛЯ,"м. Київ, вул. Потапова, буд. 4, оф. 106",76,2016-04-04,51,Послуги зв’язку,Послуги зв’язку,362597,Центральний офіс,37413211,Україна,Послуги інтернет,26003052628485,current,3291.00,"ТОВ ""УТЕЛС",38590278,юридична особа
ВОЛЯ,"м. Київ, просп. Перемоги, буд. 65",43,2016-04-02,б/н,Інші витрати,Інші витрати,362866,Київська міська організація,37716506,Київ,Опл за товари та послуги(карта),26003052646188,current,255.00,"ПАТ КБ ""Приватбанк""",143605670,юридична особа
ВОЛЯ,"м. Київ, вул. Грушевського, буд. 1Д",70,2016-04-02,б/н,Банківські послуги,Інші витрати,362596,Центральний офіс,37413211,Україна,Комісія за РКО,26003052628485,current,27.19,"ПАТ КБ ""Приватбанк""",14360570,юридична особа
ВОЛЯ,"м. Київ, вул. Грушевського, буд. 1Д",70,2016-04-01,б/н,Банківські послуги,Інші витрати,362595,Центральний офіс,37413211,Україна,Комісія за РКО,26003052628485,current,100.00,"ПАТ КБ ""Приватбанк""",14360570,юридична особа
ВОЛЯ,"м. Київ, вул. Антонова, буд. 5А",78,2016-03-31,51,Оренда обладнання та технічних засобів,Оренда обладнання та технічних засобів,362594,Центральний офіс,37413211,Україна,Оренда кулерів,26003052628485,current,140.00,"""Аквамаркет сервіс""",38791982,юридична особа
ВОЛЯ,"м. Одеса, вул. Мала Арнаутська, буд. 66",76,2016-03-31,50,Послуги зв’язку,Послуги зв’язку,362593,Центральний офіс,37413211,Україна,Послуги зв»язку,26003052628485,current,240.00,"ТОВ ""Інтернаціональні телекомунікації""",30109015,юридична особа
ВОЛЯ,"м. Київ, вул. Грушевського, буд. 1Д",70,2016-03-31,б/н,Банківські послуги,Інші витрати,362592,Центральний офіс,37413211,Україна,Комісія за РКО,26003052628485,current,18.00,"ПАТ КБ ""Приватбанк""",14360570,юридична особа
ВОЛЯ,"м. Київ, вул. Грушевського, буд. 1Д",84,2016-03-31,49,"Заробітна плата, премії","Заробітна плата, лікарняні, вагітності, відрядження, компенсації",362591,Центральний офіс,37413211,Україна,Виплата ЗП 03/2016 на карти,26003052628485,current,10877.16,"ПАТ КБ ""Приватбанк""",14360570,юридична особа
ВОЛЯ,"м. Київ, вул. Жилянська, буд. 23",62,2016-03-31,45,Сплата ЄСВ,Податкові платежі,362590,Центральний офіс,37413211,Україна,ЕСВ ЗП 03/2016,26003052628485,current,2785.37,ДПІ у Голосіївському районі м. Києва,39468461,юридична особа
ВОЛЯ,"м. Київ, вул. Володимирська, буд. 69А",61,2016-03-31,47,Військовий збір,Податкові платежі,362589,Центральний офіс,37413211,Україна,Військ.збір ЗП 03/2016,26003052628485,current,202.68,УДКСУ у Голосіївському районі м. Києва,38039757,юридична особа
ВОЛЯ,"м. Київ, вул. Володимирська, буд. 69А",63,2016-03-31,48,Податок на доходи,Податкові платежі,362588,Центральний офіс,37413211,Україна,ПДФОЗП 03/2016,26003052628485,current,2432.16,УДКСУ у Голосіївському районі м. Києва,38039757,юридична особа
ВОЛЯ,"Київ, вул. Хмельницького, буд. 48 А",79,2016-03-29,44,"Оренда будинків і приміщень та експлуатаційні витрати (прибирання, страхування орендованих будинків, охорона, сигналізація, ремонт, вивіз сміття, тощо)",Оренда нерухомості,362587,Центральний офіс,37413211,Україна,ідшкодуван комунальних витра,26003052628485,current,2600.06,"СК ""Універсальна""",20113829,юридична особа
ВОЛЯ,"м. Київ, вул. Грушевського, буд. 1Д",70,2016-03-29,б/н,Банківські послуги,Інші витрати,362586,Центральний офіс,37413211,Україна,Комісія за РКО,26003052628485,current,6.00,"ПАТ КБ ""Приватбанк""",14360570,юридична особа
ВОЛЯ,"м. Київ, вул. Богдана Хмельницького, буд. 48А",79,2016-03-29,43,"Оренда будинків і приміщень та експлуатаційні витрати (прибирання, страхування орендованих будинків, охорона, сигналізація, ремонт, вивіз сміття, тощо)",Оренда нерухомості,362585,Центральний офіс,37413211,Україна,Орендна плата офісу,26003052628485,current,16000.00,"СК ""Універсальна""",20113829,юридична особа
ВОЛЯ,"м. Київ, вул. Грушевського, буд. 1Д",70,2016-03-22,,Банківські послуги,Інші витрати,362569,Центральний офіс,37413211,Україна,Комісія за РКО,26003052628485,current,6.00,"ПАТ КБ ""Приватбанк""",14360570,юридична особа
ВОЛЯ,"м. Київ, вул. Богдана Хмельницького, буд. 48А",79,2016-03-22,,"Оренда будинків і приміщень та експлуатаційні витрати (прибирання, страхування орендованих будинків, охорона, сигналізація, ремонт, вивіз сміття, тощо)",Оренда нерухомості,362568,Центральний офіс,37413211,Україна,Відшкодування комунальних витрат,26003052628485,current,5450.96,"СК ""Універсальна""",20113829,юридична особа
ВОЛЯ,"м. Київ, вул. Богдана Хмельницького, буд. 48А",79,2016-03-22,,"Оренда будинків і приміщень та експлуатаційні витрати (прибирання, страхування орендованих будинків, охорона, сигналізація, ремонт, вивіз сміття, тощо)",Оренда нерухомості,362567,Центральний офіс,37413211,Україна,Орендна плата офісу,26003052628485,current,16000.00,"СК ""Універсальна""",20113829,юридична особа
ВОЛЯ,"м. Київ, просп. Перемоги, буд. 65",43,2016-03-11,б/н,Інші витрати,Інші витрати,362865,Київська міська організація,37716506,Київ,Опл за товари та послуги(карта),26003052646188,current,3.00,"ПАТ КБ ""Приватбанк""",143605670,юридична особа
ВОЛЯ,"Київська обл., м. Бориспіль, вул. Київский шлях, буд. 98, кв. 16",79,2016-03-11,40,"Оренда будинків і приміщень та експлуатаційні витрати (прибирання, страхування орендованих будинків, охорона, сигналізація, ремонт, вивіз сміття, тощо)",Оренда нерухомості,362584,Центральний офіс,37413211,Україна,Оренди плата за к/приміщення,26003052628485,current,6000.00,Паламарчук Олена Миколаївна,3085019287,фізична особа
ВОЛЯ,"м. Київ, вул. Грушевського, буд. 1Д",70,2016-03-11,б/н,Банківські послуги,Інші витрати,362583,Центральний офіс,37413211,Україна,Комісія за РКО,26003052628485,current,16.92,"ПАТ КБ ""Приватбанк""",14360570,юридична особа
ВОЛЯ,"м. Київ, просп. Червонозоряний, буд. 51",76,2016-03-11,41,Послуги зв’язку,Послуги зв’язку,362582,Центральний офіс,37413211,Україна,Послуги зв»язку,26003052628485,current,2615.00,"ПрАТ ""Київстар""",21673832,юридична особа
ВОЛЯ,"м. Київ, вул. Лейпцизька, буд. 15",76,2016-03-11,39,Послуги зв’язку,Послуги зв’язку,362581,Центральний офіс,37413211,Україна,Послуги зв»язку,26003052628485,current,1261.62,"ПрАТ ""ВФ Україна""",14333937,юридична особа
ВОЛЯ,"м. Київ, вул. Володимирська, буд. 69А",60,2016-03-09,3,Інші податки,Податкові платежі,362864,Київська міська організація,37716506,Київ,сплата грош.зобов»язано по акту пепевшки,26003052646188,current,170.00,УДКСУ у Голосіївському районі м. Києва,38039757,юридична особа
ВОЛЯ,"м. Київ, вул. Грушевського, буд. 1Д",70,2016-03-09,б/н,Банківські послуги,Інші витрати,362580,Центральний офіс,37413211,Україна,Комісія за РКО,26003052628485,current,3.00,"ПАТ КБ ""Приватбанк""",14360570,юридична особа
ВОЛЯ,"м. Київ, просп. Червонозоряний, буд. 51",76,2016-03-09,38,Послуги зв’язку,Послуги зв’язку,362579,Центральний офіс,37413211,Україна,Послуги зв»язку,26003052628485,current,456.00,"ПрАТ ""Київстар""",21673832,юридична особа
ВОЛЯ,"м. Київ, вул. Грушевського, буд. 1Д",70,2016-03-02,б/н,Банківські послуги,Інші витрати,362578,Центральний офіс,37413211,Україна,Комісія за РКО,26003052628485,current,3.00,"ПАТ КБ ""Приватбанк""",14360570,юридична особа
ВОЛЯ,"м. Київ, вул. Потапова, буд. 4, оф. 106",76,2016-03-02,37,Послуги зв’язку,Послуги зв’язку,362577,Центральний офіс,37413211,Україна,Послуги інтернет,26003052628485,current,3291.00,"ТОВ ""УТЕЛС",38590278,юридична особа
ВОЛЯ,"м. Київ, вул. Грушевського, буд. 1Д",70,2016-03-01,б/н,Банківські послуги,Інші витрати,362576,Центральний офіс,37413211,Україна,Комісія за РКО,26003052628485,current,100.00,"ПАТ КБ ""Приватбанк""",14360570,юридична особа
ВОЛЯ,"м. Одеса, вул. Мала Арнаутська, буд. 66",76,2016-02-29,36,Послуги зв’язку,Послуги зв’язку,362575,Центральний офіс,37413211,Україна,Послуги зв»язку,26003052628485,current,300.00,"ТОВ ""Інтернаціональні телекомунікації""",30109015,юридична особа
ВОЛЯ,"м. Київ, вул. Грушевського, буд. 1Д",76,2016-02-29,б/н,Послуги зв’язку,Послуги зв’язку,362574,Центральний офіс,37413211,Україна,Послуги зв»язку,26003052628485,current,15.00,"ПАТ КБ ""Приватбанк""",14360570,юридична особа
ВОЛЯ,"м. Київ, вул. Грушевського, буд. 1Д",84,2016-02-29,,"Заробітна плата, премії","Заробітна плата, лікарняні, вагітності, відрядження, компенсації",362573,Центральний офіс,37413211,Україна,Виплата ЗП 11/2016,26003052628485,current,3169.44,"ПАТ КБ ""Приватбанк""",14360570,юридична особа
ВОЛЯ,"м. Київ, вул. Жилянська, буд. 23",62,2016-02-29,,Сплата ЄСВ,Податкові платежі,362572,Центральний офіс,37413211,Україна,ЕСВ,26003052628485,current,776.99,ДПІ у Голосіївському районі м. Києва,39468461,юридична особа
ВОЛЯ,"м. Київ, вул. Володимирська, буд. 69А",61,2016-02-29,,Військовий збір,Податкові платежі,362571,Центральний офіс,37413211,Україна,Військ.збір ЗП 11/2016,26003052628485,current,59.04,УДКСУ у Голосіївському районі м. Києва,38039757,юридична особа
ВОЛЯ,"м. Київ, вул. Володимирська, буд. 69А",63,2016-02-29,,Податок на доходи,Податкові платежі,362570,Центральний офіс,37413211,Україна,ПДФО ЗП 11/2016,26003052628485,current,708.66,УДКСУ у Голосіївському районі м. Києва,38039757,юридична особа
ВОЛЯ,"м. Київ, вул. Грушевського, буд. 1Д",70,2016-02-17,,Банківські послуги,Інші витрати,362566,Центральний офіс,37413211,Україна,Комісія за РКО,26003052628485,current,3.00,"ПАТ КБ ""Приватбанк""",14360570,юридична особа
ВОЛЯ,"Київська обл., м. Бориспіль, вул. Київский шлях, буд. 98, кв. 16",79,2016-02-17,,"Оренда будинків і приміщень та експлуатаційні витрати (прибирання, страхування орендованих будинків, охорона, сигналізація, ремонт, вивіз сміття, тощо)",Оренда нерухомості,362565,Центральний офіс,37413211,Україна,Орендна плата офісу,26003052628485,current,6000.00,Паламарчук Олена Миколаївна,3085019287,фізична особа
ВОЛЯ,"м. Київ, вул. Грушевського, буд. 1Д",70,2016-02-16,,Банківські послуги,Інші витрати,362564,Центральний офіс,37413211,Україна,Комісія за РКО,26003052628485,current,11.72,"ПАТ КБ ""Приватбанк""",14360570,юридична особа
ВОЛЯ,Первомайського 9а,60,2016-02-16,,Інші податки,Податкові платежі,362563,Центральний офіс,37413211,Україна,Реєстраційний збір,26003052628485,current,413.40,УДКСУ у Печерському районі м. Києва,38004897,юридична особа
ВОЛЯ,"м. Київ, вул. Грушевського, буд. 1Д",70,2016-02-15,,Банківські послуги,Інші витрати,362562,Центральний офіс,37413211,Україна,Комісія за РКО,26003052628485,current,12.00,"ПАТ КБ ""Приватбанк""",14360570,юридична особа
ВОЛЯ,"м. Київ, вул. Грушевського, буд. 1Д",84,2016-02-15,,"Заробітна плата, премії","Заробітна плата, лікарняні, вагітності, відрядження, компенсації",362561,Центральний офіс,37413211,Україна,Виплата ЗП 11/2016,26003052628485,current,3486.30,"ПАТ КБ ""Приватбанк""",14360570,юридична особа
ВОЛЯ,"м. Київ, вул. Жилянська, буд. 23",62,2016-02-15,,Сплата ЄСВ,Податкові платежі,362560,Центральний офіс,37413211,Україна,ЕСВ,26003052628485,current,854.70,ДПІ у Голосіївському районі м. Києва,39468461,юридична особа
ВОЛЯ,"м. Київ, вул. Володимирська, буд. 69А",61,2016-02-15,,Військовий збір,Податкові платежі,362559,Центральний офіс,37413211,Україна,Військ.збір ЗП 11/2016,26003052628485,current,64.98,УДКСУ у Голосіївському районі м. Києва,38039757,юридична особа
ВОЛЯ,"м. Київ, вул. Володимирська, буд. 69А",63,2016-02-15,,Податок на доходи,Податкові платежі,362558,Центральний офіс,37413211,Україна,ПДФО ЗП 11/2016,26003052628485,current,779.58,УДКСУ у Голосіївському районі м. Києва,38039757,юридична особа
ВОЛЯ,"м. Прилуки, вул. Гвардійська, буд. 96/32",82,2016-02-10,22,"Гонорари, в тому числі за надані консультаційні послуги","Гонорари, в тому числі за надані консультаційні послуги",362557,Центральний офіс,37413211,Україна,Інф-конс.посл інформа,26003052628485,current,2211.00,Крюкова Н І,2022018988,фізична особа
ВОЛЯ,"м. Київ, вул. Грушевського, буд. 1Д",70,2016-02-10,б/н,Банківські послуги,Інші витрати,362556,Центральний офіс,37413211,Україна,Комісія за РКО,26003052628485,current,12.00,"ПАТ КБ ""Приватбанк""",14360570,юридична особа
ВОЛЯ,"м. Київ, просп. Червонозоряний, буд. 51",76,2016-02-10,2Ö,Послуги зв’язку,Послуги зв’язку,362555,Центральний офіс,37413211,Україна,Послуги зв»язку,26003052628485,current,1849.00,"ПрАТ ""Київстар""",21673832,юридична особа
ВОЛЯ,"м. Київ, вул. Лейпцизька, буд. 15",76,2016-02-10,21,Послуги зв’язку,Послуги зв’язку,362554,Центральний офіс,37413211,Україна,Послуги зв»язку,26003052628485,current,999.47,"ПрАТ ""ВФ Україна""",14333937,юридична особа
ВОЛЯ,"м. Київ, вул. Грушевського, буд. 1Д",70,2016-02-05,б/н,Банківські послуги,Інші витрати,362553,Центральний офіс,37413211,Україна,Комісія за РКО,26003052628485,current,3.00,"ПАТ КБ ""Приватбанк""",14360570,юридична особа
ВОЛЯ,"м. Київ, просп. Червонозоряний, буд. 51",76,2016-02-05,18,Послуги зв’язку,Послуги зв’язку,362552,Центральний офіс,37413211,Україна,Послуги зв»язку,26003052628485,current,456.00,"ПрАТ ""Київстар""",21673832,юридична особа
ВОЛЯ,"м. Київ, вул. Грушевського, буд. 1Д",70,2016-02-03,б/н,Банківські послуги,Інші витрати,362551,Центральний офіс,37413211,Україна,Комісія за РКО,26003052628485,current,3.00,"ПАТ КБ ""Приватбанк""",14360570,юридична особа
ВОЛЯ,"м. Одеса, вул. Мала Арнаутська, буд. 66",76,2016-02-03,18,Послуги зв’язку,Послуги зв’язку,362550,Центральний офіс,37413211,Україна,Послуги зв»язку,26003052628485,current,240.00,"ТОВ ""Інтернаціональні телекомунікації""",30109015,юридична особа
ВОЛЯ,"м. Суми, вул. Горького, буд. 30, КВ. І",72,2016-02-02,16,"Придбання, ремонт офісної техніки та програмного забезпечення (Бухгалтерські програми, Ліга.закон, домени)",Придбання офісної техніки та програмного забезпечення,362549,Центральний офіс,37413211,Україна,Програмне забеспечення вебсайту,26003052628485,current,6509.00,Пархоменко Олена Володимирівна,2263606042,фізична особа
ВОЛЯ,"м. Київ, вул. Грушевського, буд. 1Д",70,2016-02-02,б/н,Банківські послуги,Інші витрати,362548,Центральний офіс,37413211,Україна,Комісія за РКО,26003052628485,current,3.00,"ПАТ КБ ""Приватбанк""",14360570,юридична особа
ВОЛЯ,"м. Київ, вул. Потапова, буд. 4, оф. 106",76,2016-02-02,17,Послуги зв’язку,Послуги зв’язку,362547,Центральний офіс,37413211,Україна,Послуги іктернет,26003052628485,current,3291.00,"ТОВ ""УТЕЛС",38590278,юридична особа
ВОЛЯ,"м. Київ, вул. Грушевського, буд. 1Д",70,2016-02-01,б/н,Банківські послуги,Інші витрати,362546,Центральний офіс,37413211,Україна,Комісія за РКО,26003052628485,current,100.00,"ПАТ КБ ""Приватбанк""",14360570,юридична особа
ВОЛЯ,"м. Київ, вул. Грушевського, буд. 1Д",70,2016-01-30,1.47Е+10,Банківські послуги,Інші витрати,362545,Центральний офіс,37413211,Україна,Комісія за РКО,26003052628485,current,8.76,"ПАТ КБ ""Приватбанк""",14360570,юридична особа
ВОЛЯ,"м. Київ, вул. Грушевського, буд. 1Д",70,2016-01-29,б/н,Банківські послуги,Інші витрати,362544,Центральний офіс,37413211,Україна,Комісія за РКО,26003052628485,current,12.00,"ПАТ КБ ""Приватбанк""",14360570,юридична особа
ВОЛЯ,"м. Київ, вул. Грушевського, буд. 1Д",84,2016-01-29,17,"Заробітна плата, премії","Заробітна плата, лікарняні, вагітності, відрядження, компенсації",362543,Центральний офіс,37413211,Україна,Виплата ЗП 010/2016 на карти,26003052628485,current,3502.98,"ПАТ КБ ""Приватбанк""",14360570,юридична особа
ВОЛЯ,"м. Київ, вул. Жилянська, буд. 23",62,2016-01-29,13,Сплата ЄСВ,Податкові платежі,362542,Центральний офіс,37413211,Україна,ЕСВ ЗП 01/2016,26003052628485,current,770.09,ДПІ у Голосіївському районі м. Києва,39468461,юридична особа
ВОЛЯ,"м. Київ, вул. Володимирська, буд. 69А",61,2016-01-29,16,Військовий збір,Податкові платежі,362541,Центральний офіс,37413211,Україна,Військ.збір ЗП 01/2016,26003052628485,current,65.28,УДКСУ у Голосіївському районі м. Києва,38039757,юридична особа
ВОЛЯ,"м. Київ, вул. Володимирська, буд. 69А",63,2016-01-29,15,Податок на доходи,Податкові платежі,362540,Центральний офіс,37413211,Україна,ПДФО ЗП 01/2016,26003052628485,current,783.30,УДКСУ у Голосіївському районі м. Києва,38039757,юридична особа
ВОЛЯ,"м. Київ, вул. Богдана Хмельницького, буд. 48А",79,2016-01-20,12,"Оренда будинків і приміщень та експлуатаційні витрати (прибирання, страхування орендованих будинків, охорона, сигналізація, ремонт, вивіз сміття, тощо)",Оренда нерухомості,362539,Центральний офіс,37413211,Україна,ідшкодуван комунальних витра,26003052628485,current,4822.12,"СК ""Універсальна""",20113829,юридична особа
ВОЛЯ,"м. Київ, вул. Богдана Хмельницького, буд. 48А",79,2016-01-20,10,"Оренда будинків і приміщень та експлуатаційні витрати (прибирання, страхування орендованих будинків, охорона, сигналізація, ремонт, вивіз сміття, тощо)",Оренда нерухомості,362538,Центральний офіс,37413211,Україна,Орендна плата офісу,26003052628485,current,16000.00,"СК ""Універсальна""",20113829,юридична особа
ВОЛЯ,"м. Київ, вул. Грушевського, буд. 1Д",70,2016-01-20,б/н,Банківські послуги,Інші витрати,362537,Центральний офіс,37413211,Україна,Комісія за РКО,26003052628485,current,9.00,"ПАТ КБ ""Приватбанк""",14360570,юридична особа
ВОЛЯ,"м. Київ, вул. Лейпцизька, буд. 15",76,2016-01-20,8,Послуги зв’язку,Послуги зв’язку,362536,Центральний офіс,37413211,Україна,Послуги зв»язку,26003052628485,current,977.30,"ПрАТ ""ВФ Україна""",14333937,юридична особа
ВОЛЯ,"м. Прилуки, вул. Гвардійська, буд. 96/32",82,2016-01-18,6,"Гонорари, в тому числі за надані консультаційні послуги","Гонорари, в тому числі за надані консультаційні послуги",362535,Центральний офіс,37413211,Україна,Інф-конс.посл інформа,26003052628485,current,630.00,Крюкова Н І,2022018988,фізична особа
ВОЛЯ,"м. Київ, просп. Червонозоряний, буд. 51",76,2016-01-18,7,Послуги зв’язку,Послуги зв’язку,362534,Центральний офіс,37413211,Україна,Послуги зв»язку,26003052628485,current,1927.00,"ПрАТ ""Київстар""",21673832,юридична особа
ВОЛЯ,"м. Київ, вул. Грушевського, буд. 1Д",70,2016-01-18,б/н,Банківські послуги,Інші витрати,362533,Центральний офіс,37413211,Україна,Комісія за РКО,26003052628485,current,6.00,"ПАТ КБ ""Приватбанк""",14360570,юридична особа
ВОЛЯ,"м. Київ, вул. Грушевського, буд. 1Д",70,2016-01-16,1.47Е+10,Банківські послуги,Інші витрати,362532,Центральний офіс,37413211,Україна,Комісія за РКО,26003052628485,current,7.88,"ПАТ КБ ""Приватбанк""",14360570,юридична особа
ВОЛЯ,"м. Київ, вул. Грушевського, буд. 1Д",70,2016-01-15,б/н,Банківські послуги,Інші витрати,362531,Центральний офіс,37413211,Україна,Комісія за РКО,26003052628485,current,12.00,"ПАТ КБ ""Приватбанк""",14360570,юридична особа
ВОЛЯ,"Київська обл., м. Бориспіль, вул. Київский шлях, буд. 98, кв. 16",79,2016-01-15,2,"Оренда будинків і приміщень та експлуатаційні витрати (прибирання, страхування орендованих будинків, охорона, сигналізація, ремонт, вивіз сміття, тощо)",Оренда нерухомості,362530,Центральний офіс,37413211,Україна,Оренди плата за н/приміщення,26003052628485,current,6000.00,Паламарчук Олена Миколаївна,3085019287,фізична особа
ВОЛЯ,"м. Київ, вул. Грушевського, буд. 1Д",84,2016-01-15,6,"Заробітна плата, премії","Заробітна плата, лікарняні, вагітності, відрядження, компенсації",362529,Центральний офіс,37413211,Україна,Виплата ЗП 01/2016 аванс на карти,26003052628485,current,3152.76,"ПАТ КБ ""Приватбанк""",14360570,юридична особа
ВОЛЯ,"м. Київ, вул. Жилянська, буд. 23",62,2016-01-15,3,Сплата ЄСВ,Податкові платежі,362528,Центральний офіс,37413211,Україна,ЕСВ ЗП 01/2016 аванс,26003052628485,current,861.60,ДПІ у Голосіївському районі м. Києва,39468461,юридична особа
ВОЛЯ,"м. Київ, вул. Володимирська, буд. 69А",61,2016-01-15,5,Військовий збір,Податкові платежі,362527,Центральний офіс,37413211,Україна,Військ.збір 01/2016 аванс,26003052628485,current,58.74,УДКСУ у Голосіївському районі м. Києва,38039757,юридична особа
ВОЛЯ,"м. Київ, вул. Володимирська, буд. 69А",63,2016-01-15,4,Податок на доходи,Податкові платежі,362526,Центральний офіс,37413211,Україна,ПДФО ЗП 01/2016 аванс,26003052628485,current,704.94,УДКСУ у Голосіївському районі м. Києва,38039757,юридична особа
ВОЛЯ,"м. Київ, вул. Грушевського, буд. 1Д",70,2016-01-11,б/н,Банківські послуги,Інші витрати,362525,Центральний офіс,37413211,Україна,Комісія за РКО,26003052628485,current,3.00,"ПАТ КБ ""Приватбанк""",14360570,юридична особа
ВОЛЯ,"м. Київ, вул. Потапова, буд. 4, оф. 106",76,2016-01-11,1,Послуги зв’язку,Послуги зв’язку,362524,Центральний офіс,37413211,Україна,Послуги інтернет,26003052628485,current,3291.00,"ТОВ ""УТЕЛС",38590278,юридична особа
ВОЛЯ,"м. Київ, вул. Грушевського, буд. 1Д",70,2016-01-08,Ц47Е+10,Банківські послуги,Інші витрати,362523,Центральний офіс,37413211,Україна,Комісія за РКО,26003052628485,current,8.68,"ПАТ КБ ""Приватбанк""",14360570,юридична особа
ВОЛЯ,"м. Київ, вул. Грушевського, буд. 1Д",70,2016-01-05,б/н,Банківські послуги,Інші витрати,362522,Центральний офіс,37413211,Україна,Комісія за РКО,26003052628485,current,100.00,"ПАТ КБ ""Приватбанк""",14360570,юридична особа
